{"text_format":"1","workbook":"xlsx","n_sheets":1,"sheets":["ГРАФИК К.П ОКТЯБРЬ"],"not_rendered":{"charts":0,"images":0,"macros":1,"external_links":5,"defined_names":42,"comments":0,"pivot_tables":0},"unopened":[],"bounds":{"document_bytes":16777216,"sheet_cells":100000,"rows_first":2000,"rows_last":500,"rows_between":2000,"halvings":0,"cell_chars":16384,"cell_head_chars":4096},"cells_cut":0,"cells_raw":0,"read":"whole","date_system":"1900"}

{"sheet":"ГРАФИК К.П ОКТЯБРЬ","index":0,"n_rows":111,"n_cols":250,"rows_kept":111,"cut":false,"hidden":false,"merged":[[110,142,114,235],[7,0,7,76],[3,0,3,2],[2,0,2,2],[1,0,1,2],[11,210,11,233],[107,16,107,18],[107,19,107,32],[107,38,107,67],[107,74,107,104],[12,211,12,219],[12,200,12,209],[12,190,12,198],[105,141,108,235],[105,16,105,18],[105,19,105,32],[105,38,105,67],[105,74,105,104],[106,16,106,18],[106,19,106,32],[106,38,106,67],[106,74,106,104],[103,16,103,18],[103,19,103,32],[103,38,103,67],[103,74,103,104],[104,16,104,18],[104,19,104,32],[104,38,104,67],[104,74,104,104],[101,16,101,18],[101,19,101,32],[101,38,101,67],[101,74,101,104],[102,16,102,18],[102,19,102,32],[102,38,102,67],[102,74,102,104],[99,16,99,18],[99,19,99,32],[99,38,99,67],[99,74,99,104],[100,16,100,18],[100,19,100,32],[100,38,100,67],[100,74,100,104],[97,16,97,18],[97,19,97,32],[97,38,97,67],[97,74,97,104],[98,16,98,18],[98,19,98,32],[98,38,98,67],[98,74,98,104],[94,16,94,32],[96,16,96,18],[96,19,96,32],[96,38,96,67],[96,74,96,104],[93,166,93,171],[93,172,93,177],[93,178,93,183],[93,184,93,189],[93,190,93,195],[93,196,93,201],[93,130,93,135],[93,136,93,141],[93,142,93,147],[93,148,93,153],[93,154,93,159],[93,160,93,165],[93,94,93,99],[93,100,93,105],[93,106,93,111],[93,112,93,117],[93,118,93,123],[93,124,93,129],[93,58,93,63],[93,64,93,69],[93,70,93,75],[93,76,93,81],[93,82,93,87],[93,88,93,93],[92,208,92,213],[92,214,93,220],[92,221,93,228],[93,28,93,33],[93,34,93,39],[93,40,93,45],[93,46,93,51],[93,52,93,57],[92,160,92,165],[92,166,92,171],[92,172,92,177],[92,178,92,183],[92,184,92,189],[92,190,92,195],[92,124,92,129],[92,130,92,135],[92,136,92,141],[92,142,92,147],[92,148,92,153],[92,154,92,159],[92,88,92,93],[92,94,92,99],[92,100,92,105],[92,106,92,111],[92,112,92,117],[92,118,92,123],[92,52,92,57],[92,58,92,63],[92,64,92,69],[92,70,92,75],[93,202,93,207],[93,208,93,213],[92,76,92,81],[92,82,92,87],[91,184,91,189],[91,190,91,195],[91,196,91,201],[91,202,91,207],[91,208,91,213],[92,23,93,27],[92,28,92,33],[92,34,92,39],[92,40,92,45],[92,46,92,51],[91,148,91,153],[91,154,91,159],[91,160,91,165],[91,166,91,171],[91,172,91,177],[91,178,91,183],[91,112,91,117],[91,118,91,123],[91,124,91,129],[91,130,91,135],[91,136,91,141],[91,142,91,147],[91,76,91,81],[91,82,91,87],[91,88,91,93],[91,94,91,99],[91,100,91,105],[91,106,91,111],[92,196,92,201],[92,202,92,207],[90,202,90,207],[90,208,90,213],[91,28,91,33],[91,34,91,39],[91,40,91,45],[91,46,91,51],[91,52,91,57],[91,58,91,63],[91,64,91,69],[91,70,91,75],[90,166,90,171],[90,172,90,177],[90,178,90,183],[90,184,90,189],[90,190,90,195],[90,196,90,201],[90,130,90,135],[90,136,90,141],[90,142,90,147],[90,148,90,153],[90,154,90,159],[90,160,90,165],[90,94,90,99],[90,100,90,105],[90,106,90,111],[90,112,90,117],[90,118,90,123],[90,124,90,129],[90,58,90,63],[90,64,90,69],[90,70,90,75],[90,76,90,81],[90,82,90,87],[90,88,90,93],[90,23,91,27],[90,28,90,33],[90,34,90,39],[90,40,90,45],[90,46,90,51],[90,52,90,57],[89,154,89,159],[89,160,89,165],[89,166,89,171],[89,172,89,177],[89,178,89,183],[89,184,89,189],[89,118,89,123],[89,124,89,129],[89,130,89,135],[89,136,89,141],[89,142,89,147],[89,148,89,153],[89,82,89,87],[89,88,89,93],[89,94,89,99],[89,100,89,105],[89,106,89,111],[89,112,89,117],[88,221,89,228],[89,28,89,33],[89,34,89,39],[89,40,89,45],[89,46,89,51],[89,52,89,57],[89,58,89,63],[89,64,89,69],[89,70,89,75],[89,76,89,81],[88,184,88,189],[88,190,88,195],[88,196,88,201],[88,202,88,207],[88,208,88,213],[88,214,89,220],[89,190,89,195],[89,196,89,201],[89,202,89,207],[89,208,89,213],[88,148,88,153],[88,154,88,159],[88,160,88,165],[88,166,88,171],[88,172,88,177],[88,178,88,183],[88,112,88,117],[88,118,88,123],[88,124,88,129],[88,130,88,135],[88,136,88,141],[88,142,88,147],[88,76,88,81],[88,82,88,87],[88,88,88,93],[88,94,88,99],[88,100,88,105],[88,106,88,111],[87,208,87,213],[88,23,89,27],[88,28,88,33],[88,34,88,39],[88,40,88,45],[88,46,88,51],[88,52,88,57],[88,58,88,63],[88,64,88,69],[88,70,88,75],[87,172,87,177],[87,178,87,183],[87,184,87,189],[87,190,87,195],[87,196,87,201],[87,202,87,207],[87,136,87,141],[87,142,87,147],[87,148,87,153],[87,154,87,159],[87,160,87,165],[87,166,87,171],[87,100,87,105],[87,106,87,111],[87,112,87,117],[87,118,87,123],[87,124,87,129],[87,130,87,135],[87,64,87,69],[87,70,87,75],[87,76,87,81],[87,82,87,87],[87,88,87,93],[87,94,87,99],[86,202,86,207],[86,208,86,213],[86,214,87,220],[86,221,86,228],[87,28,87,33],[87,34,87,39],[87,40,87,45],[87,46,87,51],[87,52,87,57],[87,58,87,63],[86,166,86,171],[86,172,86,177],[86,178,86,183],[86,184,86,189],[86,190,86,195],[86,196,86,201],[86,130,86,135],[86,136,86,141],[86,142,86,147],[86,148,86,153],[86,154,86,159],[86,160,86,165],[86,94,86,99],[86,100,86,105],[86,106,86,111],[86,112,86,117],[86,118,86,123],[86,124,86,129],[86,58,86,63],[86,64,86,69],[86,70,86,75],[86,76,86,81],[86,82,86,87],[86,88,86,93],[84,208,85,213],[84,214,85,220],[86,0,93,4],[86,5,93,22],[86,23,87,27],[86,28,86,33],[86,34,86,39],[86,40,86,45],[86,46,86,51],[86,52,86,57],[84,172,85,177],[84,178,85,183],[84,184,85,189],[84,190,85,195],[84,196,85,201],[84,202,85,207],[84,136,85,141],[84,142,85,147],[84,148,85,153],[84,154,85,159],[84,160,85,165],[84,166,85,171],[84,100,85,105],[84,106,85,111],[84,112,85,117],[84,118,85,123],[84,124,85,129],[84,130,85,135],[84,64,85,69],[84,70,85,75],[84,76,85,81],[84,82,85,87],[84,88,85,93],[84,94,85,99],[83,202,83,207],[83,208,83,213],[83,214,83,220],[84,24,85,27],[84,28,85,33],[84,34,85,39],[84,40,85,45],[84,46,85,51],[84,52,85,57],[84,58,85,63],[83,166,83,171],[83,172,83,177],[83,178,83,183],[83,184,83,189],[83,190,83,195],[83,196,83,201],[83,130,83,135],[83,136,83,141],[83,142,83,147],[83,148,83,153],[83,154,83,159],[83,160,83,165],[83,94,83,99],[83,100,83,105],[83,106,83,111],[83,112,83,117],[83,118,83,123],[83,124,83,129],[83,58,83,63],[83,64,83,69],[83,70,83,75],[83,76,83,81],[83,82,83,87],[83,88,83,93],[83,24,83,27],[83,28,83,33],[83,34,83,39],[83,40,83,45],[83,46,83,51],[83,52,83,57],[82,178,82,183],[82,184,82,189],[82,190,82,195],[82,196,82,201],[82,202,82,207],[82,208,82,213],[82,142,82,147],[82,148,82,153],[82,154,82,159],[82,160,82,165],[82,166,82,171],[82,172,82,177],[82,106,82,111],[82,112,82,117],[82,118,82,123],[82,124,82,129],[82,130,82,135],[82,136,82,141],[82,70,82,75],[82,76,82,81],[82,82,82,87],[82,88,82,93],[82,94,82,99],[82,100,82,105],[81,208,81,213],[81,214,82,220],[82,24,82,27],[82,28,82,33],[82,34,82,39],[82,40,82,45],[82,46,82,51],[82,52,82,57],[82,58,82,63],[82,64,82,69],[81,172,81,177],[81,178,81,183],[81,184,81,189],[81,190,81,195],[81,196,81,201],[81,202,81,207],[81,136,81,141],[81,142,81,147],[81,148,81,153],[81,154,81,159],[81,160,81,165],[81,166,81,171],[81,100,81,105],[81,106,81,111],[81,112,81,117],[81,118,81,123],[81,124,81,129],[81,130,81,135],[81,64,81,69],[81,70,81,75],[81,76,81,81],[81,82,81,87],[81,88,81,93],[81,94,81,99],[80,196,80,201],[80,202,80,207],[80,208,80,213],[80,214,80,220],[81,28,81,33],[81,34,81,39],[81,40,81,45],[81,46,81,51],[81,52,81,57],[81,58,81,63],[80,160,80,165],[80,166,80,171],[80,172,80,177],[80,178,80,183],[80,184,80,189],[80,190,80,195],[80,124,80,129],[80,130,80,135],[80,136,80,141],[80,142,80,147],[80,148,80,153],[80,154,80,159],[80,88,80,93],[80,94,80,99],[80,100,80,105],[80,106,80,111],[80,112,80,117],[80,118,80,123],[80,52,80,57],[80,58,80,63],[80,64,80,69],[80,70,80,75],[80,76,80,81],[80,82,80,87],[78,208,79,213],[78,214,79,220],[78,232,79,232],[80,1,85,4],[80,5,85,22],[80,24,81,27],[80,28,80,33],[80,34,80,39],[80,40,80,45],[80,46,80,51],[78,172,79,177],[78,178,79,183],[78,184,79,189],[78,190,79,195],[78,196,79,201],[78,202,79,207],[78,136,79,141],[78,142,79,147],[78,148,79,153],[78,154,79,159],[78,160,79,165],[78,166,79,171],[78,100,79,105],[78,106,79,111],[78,112,79,117],[78,118,79,123],[78,124,79,129],[78,130,79,135],[78,64,79,69],[78,70,79,75],[78,76,79,81],[78,82,79,87],[78,88,79,93],[78,94,79,99],[77,202,77,207],[77,208,77,213],[77,214,77,220],[78,24,79,27],[78,28,79,33],[78,34,79,39],[78,40,79,45],[78,46,79,51],[78,52,79,57],[78,58,79,63],[77,166,77,171],[77,172,77,177],[77,178,77,183],[77,184,77,189],[77,190,77,195],[77,196,77,201],[77,130,77,135],[77,136,77,141],[77,142,77,147],[77,148,77,153],[77,154,77,159],[77,160,77,165],[77,94,77,99],[77,100,77,105],[77,106,77,111],[77,112,77,117],[77,118,77,123],[77,124,77,129],[77,58,77,63],[77,64,77,69],[77,70,77,75],[77,76,77,81],[77,82,77,87],[77,88,77,93],[77,24,77,27],[77,28,77,33],[77,34,77,39],[77,40,77,45],[77,46,77,51],[77,52,77,57],[76,178,76,183],[76,184,76,189],[76,190,76,195],[76,196,76,201],[76,202,76,207],[76,208,76,213],[76,142,76,147],[76,148,76,153],[76,154,76,159],[76,160,76,165],[76,166,76,171],[76,172,76,177],[76,106,76,111],[76,112,76,117],[76,118,76,123],[76,124,76,129],[76,130,76,135],[76,136,76,141],[76,70,76,75],[76,76,76,81],[76,82,76,87],[76,88,76,93],[76,94,76,99],[76,100,76,105],[75,208,75,213],[75,214,76,220],[76,24,76,27],[76,28,76,33],[76,34,76,39],[76,40,76,45],[76,46,76,51],[76,52,76,57],[76,58,76,63],[76,64,76,69],[75,172,75,177],[75,178,75,183],[75,184,75,189],[75,190,75,195],[75,196,75,201],[75,202,75,207],[75,136,75,141],[75,142,75,147],[75,148,75,153],[75,154,75,159],[75,160,75,165],[75,166,75,171],[75,100,75,105],[75,106,75,111],[75,112,75,117],[75,118,75,123],[75,124,75,129],[75,130,75,135],[75,64,75,69],[75,70,75,75],[75,76,75,81],[75,82,75,87],[75,88,75,93],[75,94,75,99],[74,196,74,201],[74,202,74,207],[74,208,74,213],[74,214,74,220],[75,28,75,33],[75,34,75,39],[75,40,75,45],[75,46,75,51],[75,52,75,57],[75,58,75,63],[74,160,74,165],[74,166,74,171],[74,172,74,177],[74,178,74,183],[74,184,74,189],[74,190,74,195],[74,124,74,129],[74,130,74,135],[74,136,74,141],[74,142,74,147],[74,148,74,153],[74,154,74,159],[74,88,74,93],[74,94,74,99],[74,100,74,105],[74,106,74,111],[74,112,74,117],[74,118,74,123],[74,52,74,57],[74,58,74,63],[74,64,74,69],[74,70,74,75],[74,76,74,81],[74,82,74,87],[72,202,73,207],[72,208,73,213],[72,214,73,220],[74,1,79,4],[74,5,79,22],[74,24,75,27],[74,28,74,33],[74,34,74,39],[74,40,74,45],[74,46,74,51],[72,166,73,171],[72,172,73,177],[72,178,73,183],[72,184,73,189],[72,190,73,195],[72,196,73,201],[72,130,73,135],[72,136,73,141],[72,142,73,147],[72,148,73,153],[72,154,73,159],[72,160,73,165],[71,202,71,207],[71,208,71,213],[71,214,71,220],[72,24,73,27],[72,28,73,33],[72,34,73,39],[72,40,73,45],[72,46,73,51],[72,52,73,57],[71,160,71,165],[71,166,71,171],[71,172,71,177],[71,178,71,183],[71,184,71,189],[71,190,71,195],[71,124,71,129],[71,130,71,135],[71,136,71,141],[71,142,71,147],[71,118,71,123],[71,52,71,57],[71,58,71,63],[71,64,71,69],[71,70,71,75],[71,76,71,81],[71,82,71,87],[70,184,70,189],[70,190,70,195],[70,196,70,201],[72,94,73,99],[72,100,73,105],[72,106,73,111],[72,112,73,117],[72,118,73,123],[72,124,73,129],[72,58,73,63],[72,64,73,69],[72,70,73,75],[72,76,73,81],[72,82,73,87],[72,88,73,93],[71,196,71,201],[70,202,70,207],[70,208,70,213],[71,24,71,27],[71,28,71,33],[71,34,71,39],[71,40,71,45],[71,46,71,51],[70,148,70,153],[70,154,70,159],[70,160,70,165],[70,166,70,171],[70,172,70,177],[70,178,70,183],[70,112,70,117],[70,118,70,123],[70,124,70,129],[70,130,70,135],[70,136,70,141],[70,142,70,147],[70,76,70,81],[70,82,70,87],[70,88,70,93],[70,94,70,99],[70,100,70,105],[70,106,70,111],[71,148,71,153],[71,154,71,159],[71,88,71,93],[71,94,71,99],[71,100,71,105],[71,106,71,111],[71,112,71,117],[69,208,69,213],[70,24,70,27],[70,28,70,33],[70,34,70,39],[70,40,70,45],[70,46,70,51],[70,52,70,57],[70,58,70,63],[70,64,70,69],[70,70,70,75],[69,172,69,177],[69,178,69,183],[69,184,69,189],[69,190,69,195],[69,196,69,201],[69,202,69,207],[69,136,69,141],[69,142,69,147],[69,148,69,153],[69,154,69,159],[69,160,69,165],[69,166,69,171],[69,100,69,105],[69,106,69,111],[69,112,69,117],[69,118,69,123],[69,124,69,129],[69,130,69,135],[69,64,69,69],[69,70,69,75],[69,76,69,81],[69,82,69,87],[69,88,69,93],[69,94,69,99],[68,202,68,207],[68,208,68,213],[68,214,69,220],[68,232,69,232],[69,28,69,33],[69,34,69,39],[69,40,69,45],[69,46,69,51],[69,52,69,57],[69,58,69,63],[68,166,68,171],[68,172,68,177],[68,178,68,183],[68,184,68,189],[68,190,68,195],[68,196,68,201],[68,130,68,135],[68,136,68,141],[68,142,68,147],[68,148,68,153],[68,154,68,159],[68,160,68,165],[68,94,68,99],[68,100,68,105],[68,106,68,111],[68,112,68,117],[68,118,68,123],[68,124,68,129],[68,58,68,63],[68,64,68,69],[68,70,68,75],[68,76,68,81],[68,82,68,87],[68,88,68,93],[66,208,67,213],[66,214,67,218],[68,1,73,4],[68,5,73,22],[68,24,69,27],[68,28,68,33],[68,34,68,39],[68,40,68,45],[68,46,68,51],[68,52,68,57],[66,172,67,177],[66,178,67,183],[66,184,67,189],[66,190,67,195],[66,196,67,201],[66,202,67,207],[66,136,67,141],[66,142,67,147],[66,148,67,153],[66,154,67,159],[66,160,67,165],[66,166,67,171],[66,100,67,105],[66,106,67,111],[66,112,67,117],[66,118,67,123],[66,124,67,129],[66,130,67,135],[66,64,67,69],[66,70,67,75],[66,76,67,81],[66,82,67,87],[66,88,67,93],[66,94,67,99],[65,202,65,207],[65,208,65,213],[65,214,65,218],[66,24,67,27],[66,28,67,33],[66,34,67,39],[66,40,67,45],[66,46,67,51],[66,52,67,57],[66,58,67,63],[65,166,65,171],[65,172,65,177],[65,178,65,183],[65,184,65,189],[65,190,65,195],[65,196,65,201],[65,130,65,135],[65,136,65,141],[65,142,65,147],[65,148,65,153],[65,154,65,159],[65,160,65,165],[65,94,65,99],[65,100,65,105],[65,106,65,111],[65,112,65,117],[65,118,65,123],[65,124,65,129],[65,58,65,63],[65,64,65,69],[65,70,65,75],[65,76,65,81],[65,82,65,87],[65,88,65,93],[64,196,64,201],[64,202,64,207],[64,208,64,213],[64,214,64,220],[65,24,65,27],[65,28,65,33],[65,34,65,39],[65,40,65,45],[65,46,65,51],[65,52,65,57],[64,160,64,165],[64,166,64,171],[64,172,64,177],[64,178,64,183],[64,184,64,189],[64,190,64,195],[64,124,64,129],[64,130,64,135],[64,136,64,141],[64,142,64,147],[64,148,64,153],[64,154,64,159],[64,88,64,93],[64,94,64,99],[64,100,64,105],[64,106,64,111],[64,112,64,117],[64,118,64,123],[64,52,64,57],[64,58,64,63],[64,64,64,69],[64,70,64,75],[64,76,64,81],[64,82,64,87],[63,184,63,189],[63,190,63,195],[63,196,63,201],[63,202,63,207],[63,208,63,213],[64,24,64,27],[64,28,64,33],[64,34,64,39],[64,40,64,45],[64,46,64,51],[63,148,63,153],[63,154,63,159],[63,160,63,165],[63,166,63,171],[63,172,63,177],[63,178,63,183],[63,112,63,117],[63,118,63,123],[63,124,63,129],[63,130,63,135],[63,136,63,141],[63,142,63,147],[63,76,63,81],[63,82,63,87],[63,88,63,93],[63,94,63,99],[63,100,63,105],[63,106,63,111],[62,208,62,213],[62,214,63,220],[63,28,63,33],[63,34,63,39],[63,40,63,45],[63,46,63,51],[63,52,63,57],[63,58,63,63],[63,64,63,69],[63,70,63,75],[62,172,62,177],[62,178,62,183],[62,184,62,189],[62,190,62,195],[62,196,62,201],[62,202,62,207],[62,136,62,141],[62,142,62,147],[62,148,62,153],[62,154,62,159],[62,160,62,165],[62,166,62,171],[62,100,62,105],[62,106,62,111],[62,112,62,117],[62,118,62,123],[62,124,62,129],[62,130,62,135],[62,64,62,69],[62,70,62,75],[62,76,62,81],[62,82,62,87],[62,88,62,93],[62,94,62,99],[60,214,61,220],[62,1,67,4],[62,5,67,22],[62,24,63,27],[62,28,62,33],[62,34,62,39],[62,40,62,45],[62,46,62,51],[62,52,62,57],[62,58,62,63],[60,178,61,183],[60,184,61,189],[60,190,61,195],[60,196,61,201],[60,202,61,207],[60,208,61,213],[60,142,61,147],[60,148,61,153],[60,154,61,159],[60,160,61,165],[60,166,61,171],[60,172,61,177],[60,106,61,111],[60,112,61,117],[60,118,61,123],[60,124,61,129],[60,130,61,135],[60,136,61,141],[60,70,61,75]],"merged_total":2343,"flags":["merged_cut"]}
[null,null,null,null,null,null,null,null,null,null,null,null,null,null,null,null,null,null,null,null,null,null,null,null,null,null,null,null,null,null,null,null,null,null,null,null,null,null,null,null,null,null,null,null,null,null,null,null,null,null,null,null,null,null,null,null,null,null,null,null,null,null,null,null,null,null,null,null,null,null,null,null,null,null,null,null,null,null,null,null,null,null,null,null,null,null,null,null,null,null,null,null,null,null,null,null,null,null,null,null,null,null,null,null,null,null,null,null,null,null,null,null,null,null,null,null,null,null,null,null,null,null,null,null,null,null,null,null,null,null,null,null,null,null,null,null,null,null,null,null,null,null,null,null,null,null,null,null,null,null,null,null,null,null,null,null,null,null,null,null,null,null,null,null,null,null,null,null,null,null,null,null,null,null,null,null,null,null,null,null,null,null,null,null,null,null,null,null,null,null,null,null,null,null,null,null,null,null,null,null,null,null,null,null,null,null,null,null,null,null,null,null,null,null,null,null,null,null,null,null,null,null,null,null,null,null,null,null,null,null,null,null,null,null,null,null,null,null,null,null,null,"СЕГОДНЯ"]
[null,null,null,null,null,null,null,null,null,null,null,null,null,null,null,null,null,null,null,null,null,null,null,null,null,null,null,null,null,null,null,null,null,null,null,null,null,null,null,null,null,null,null,null,null,null,null,null,null,null,null,null,null,null,null,null,null,null,null,null,null,null,null,null,null,null,null,null,null,null,null,null,null,null,null,null,null,null,null,null,null,null,null,null,null,null,null,null,null,null,null,null,null,null,null,null,null,null,null,null,null,null,null,null,null,null,null,null,null,null,null,null,null,null,null,null,null,null,null,null,null,null,null,null,null,null,null,null,null,null,null,null,null,null,null,null,null,null,null,null,null,null,null,null,null,null,null,null,null,null,null,null,null,null,null,null,null,null,null,null,null,null,null,null,null,null,null,null,null,null,null,null,null,null,null,null,null,null,null,null,null,null,null,null,null,null,null,null,null,null,null,null,null,null,null,null,null,null,null,null,null,null,null,null,null,null,null,null,null,null,null,null,null,null,null,null,null,null,null,null,null,null,null,null,null,null,null,null,null,null,null,null,null,null,null,null,null,null,null,null,null,{"$f":"TODAY()","v":"2020-05-19"}]
[null,null,null,null,null,null,null,null,null,null,null,null,null,null,null,null,null,null,null,null,null,null,null,null,null,null,null,null,null,null,null,null,null,null,null,null,null,null,null,null,null,null,null,null,null,null,null,null,null,null,null,null,null,null,null,null,null,null,null,null,null,null,null,null,null,null,null,null,null,null,null,null,null,null,null,null,null,null,null,null,null,null,null,null,null,null,null,null,null,null,null,null,null,null,null,null,null,null,null,null,null,null,null,null,null,null,null,null,null,null,null,null,null,null,null,null,null,null,null,null,null,null,null,null,null,null,null,null,null,null,null,null,null,null,null,null,null,null,null,null,null,null,null,null,null,null,null,null,null,null,null,null,null,null,null,null,null,null,null,null,null,null,null,null,null,null,null,null,null,null,null,null,null,null,null,null,null,null,null,null,null,null,null,null,null,null,null,null,null,null,null,null,null,null,null,null,null,null,null,null,null,null,null,null,null,null,null,null,null,null,null,null,null,null,null,null,null,null,null,null,null,null,null,null,null,null,null,null,null,null,null,null,null,null,null,null,null,null,null,null,null,{"$f":"TEXT(HZ2,\"дддд\")","v":"суббота"}]
[null,null,null,null,null,null,null,null,null,null,null,null,null,null,null,null,null,null,null,null,null,null,null,null,null,null,null,null,null,null,null,null,null,null,null,null,null,null,null,null,null,null,null,null,null,null,null,null,null,null,null,null,null,null,null,null,null,null,null,null,null,null,null,null,null,null,null,null,null,null,null,null,null,null,null,null,null,null,null,null,null,null,null,null,null,null,null,null,null,null,null,null,null,null,null,null,null,null,null,null,null,null,null,null,null,null,null,null,null,null,null,null,null,null,null,null,null,null,null,null,null,null,null,null,null,null,null,null,null,null,null,null,null,null,null,null,null,null,null,null,null,null,null,null,null,null,null,null,null,null,null,null,null,null,null,null,null,null,null,null,null,null,null,null,null,null,null,null,null,null,null,null,null,null,null,null,null,null,null,null,null,null,null,null,null,null,null,null,null,null,null,null,null,null,null,null,null,null,null,null,null,null,null,null,null,null,null,null,null,null,null,null,null,null,null,null,null,null,null,null,null,null,null,null,null,null,null,null,null,null,null,null,null,null,null,null,null,null,null,null,null,{"$f":"WEEKNUM(IH2,2)&\"-ая неделя\"","v":"21-ая неделя"}]
[null,null,null,null,null,null,null,null,{"$f":"IF(OR(#REF!<D3,AND(#REF!<D2,#REF!=D3)),$CN$19,IF(OR(#REF!>D3,AND(#REF!>D2,#REF!=D3)),0,DAY(A2)))","v":{"$error":"#REF!"}},null,null,null,null,null,null,null,null,null,null,null,null,null,null,null,null,null,null,null,null,null,null,null,null,null,null,null,null,null,null,null,null,null,null,null,null,null,null,null,null,null,null,null,null,null,null,null,null,null,null,null,null,null,null,null,null,null,null,null,null,null,null,null,null,null,null,null,null,null,null,null,null,null,null,null,null,null,null,null,null,null,null,null,null,null,null,null,null,null,null,null,null,null,null,null,null,null,null,null,null,null,null,null,null,null,null,null,null,null,null,null,null,null,null,null,null,null,null,null,null,null,null,null,null,null,null,null,null,null,null,null,null,null,null,null,null,null,null,null,null,null,null,null,null,null,null,null,null,null,null,null,null,null,null,null,null,null,null,null,null,null,null,null,null,null,null,null,null,null,null,null,null,null,null,null,null,null,null,null,null,null,null,null,null,null,null,null,null,null,null,null,null,null,null,null,null,null,null,null,null,null,null,null,null,null,null,null,null,null,null,null,null,null,null,null,null,null,null,null,null,null,null,null,null,null,null,null,null,null,null,null,null,{"$f":"IF(OR(#REF!<IC3,AND(#REF!<IC2,#REF!=IC3)),$CN$19,IF(OR(#REF!>IC3,AND(#REF!>IC2,#REF!=IC3)),0,DAY(HZ2)))","v":{"$error":"#REF!"}}]
[null,null,null,null,null,null,null,null,null,null,null,null,null,null,null,null,null,null,null,null,null,null,null,null,null,null,null,null,null,null,null,null,null,null,null,null,null,null,null,null,null,null,null,null,null,null,null,null,null,null,null,null,null,null,null,null,null,null,null,null,null,null,null,null,null,null,null,null,null,null,null,null,null,null,null,null,null,null,null,null,null,null,null,null,null,null,null,null,null,null,null,null,null,null,null,null,null,null,null,null,null,null,null,null,null,null,null,null,null,null,null,null,null,null,null,null,null,null,null,null,null,null,null,null,null,null,null,null,null,null,null,null,null,null,null,null,null,null,null,null,null,null,null,null,null,null,null,null,null,null,null,null,null,null,null,null,null,null,null,null,null,null,null,null,null,null,null,null,null,null,null,null,null,null,null,null,null,null,null,null,null,null,null,null,null,null,null,null,null,null,null,null,null,null,null,null,null,null,null,null,null,null,null,null,null,null,null,null,null,null,null,null,null,null,null,null,null,null,null,null,null,null,null,null,null,null,null,null,null,null,null,null,null,null,null,null,null,null,null,null,"время"]
[null,null,null,null,null,null,null,null,null,null,null,null,null,null,null,null,null,null,null,null,null,null,null,null,null,null,null,null,null,null,null,null,null,null,null,null,null,null,null,null,null,null,null,null,null,null,null,null,null,null,null,null,null,null,null,null,null,null,null,null,null,null,null,null,null,null,null,null,null,null,null,null,null,null,null,null,null,null,null,null,null,null,null,null,null,null,null,null,null,null,null,null,null,null,null,null,null,null,null,null,null,null,null,null,null,null,null,null,null,null,null,null,null,null,null,null,null,null,null,null,null,null,null,null,null,null,null,null,null,null,null,null,null,null,null,null,null,null,null,null,null,null,null,null,null,null,null,null,null,null,null,null,null,null,null,null,null,null,null,null,null,null,null,null,null,null,null,null,null,null,null,null,null,null,null,null,null,null,null,null,null,null,null,null,null,null,null,null,null,null,null,null,null,null,null,null,null,null,null,null,null,null,null,null,null,null,null,null,1,null,null,null,null,null,null,null,null,null,null,null,null,null,null,null,null,null,null,null,null,null,null,null,null,null,null,"количество дней месяца",null,null,{"$f":"VLOOKUP(HY17,'[5]производственный календарь '!B2:F13,5,0)","v":31}]
[null,null,null,null,null,null,null,null,null,null,null,null,null,null,null,null,null,null,null,null,null,null,null,null,null,null,null,null,null,null,null,null,null,null,null,null,null,null,null,null,null,null,null,null,null,null,null,null,null,null,null,null,null,null,null,null,null,null,null,null,null,null,null,null,null,null,null,null,null,null,null,null,null,null,null,null,null,null,null,null,null,null,null,null,null,null,null,null,null,null,null,null,null,null,null,null,null,null,null,null,null,null,null,null,null,null,null,null,null,null,null,null,null,null,null,null,null,null,null,null,null,null,null,null,null,null,null,null,null,null,null,null,null,null,null,null,null,null,null,null,null,null,null,null,null,null,null,null,null,null,null,null,null,null,null,null,null,null,null,null,null,null,null,null,null,null,null,null,null,null,null,null,null,null,null,null,null,null,null,null,null,null,null,null,null,null,null,null,null,null,null,null,null,null,null,null,null,null,null,null,null,null,null,null,null,null,null,null,2,null,null,null,null,null,null,null,null,null,null,null,null,null,null,null,null,null,null,null,null,null,null,null,null,null,null,"месяц",null,null,{"$f":"VLOOKUP(HY17,'[5]производственный календарь '!B2:F13,4,0)","v":10},null,"Столбец1"]
[null,null,null,null,null,null,null,null,null,null,null,null,null,null,null,null,null,null,null,null,null,null,null,null,null,null,null,null,null,null,null,null,null,null,null,null,null,null,null,null,null,null,null,null,null,null,null,null,null,null,null,null,null,null,null,null,null,null,null,null,null,null,null,null,null,null,null,null,null,null,null,null,null,null,null,null,null,null,null,null,null,null,null,null,null,null,null,null,null,null,null,null,null,null,null,null,null,null,null,null,null,null,null,null,null,null,null,null,null,null,null,null,null,null,null,null,null,null,null,null,null,null,null,null,null,null,null,null,null,null,null,null,null,null,null,null,null,null,null,null,null,null,null,null,null,null,null,null,null,null,null,null,null,null,null,null,null,null,null,null,null,null,null,null,null,null,null,null,null,null,null,null,null,null,null,null,null,null,null,null,null,null,null,null,null,null,null,null,null,null,null,null,null,null,null,null,null,null,null,null,null,null,null,null,null,null,null,null,null,null,null,null,null,null,null,null,null,null,null,null,null,null,null,null,null,null,null,null,null,null,null,null,null,null,null,"год",null,null,{"$f":"YEAR(A17)","v":2020},null,0]
[null,null,null,null,null,null,null,null,null,null,null,null,null,null,null,null,null,null,null,null,null,null,null,null,null,null,null,null,null,null,null,null,null,null,null,null,null,null,null,null,null,null,null,null,null,null,null,null,null,null,null,null,null,null,null,null,null,null,null,null,null,null,null,null,null,null,null,null,null,null,null,null,null,null,null,null,null,null,null,null,null,null,null,null,null,null,null,null,null,null,null,null,null,null,null,null,null,null,null,null,null,null,null,null,null,null,null,null,null,null,null,null,null,null,null,null,null,null,null,null,null,null,null,null,null,null,null,null,null,null,null,null,null,null,null,null,null,null,null,null,null,null,null,null,null,null,null,null,null,null,null,null,null,null,null,null,null,null,null,null,null,null,null,null,null,null,null,null,null,null,null,null,null,null,null,null,null,null,null,null,null,null,null,null,null,null,null,null,null,null,"УТВЕРЖДАЮ",null,null,null,null,null,null,null,null,null,null,null,null,null,null,null,null,null,null,null,null,null,null,null,null,null,null,null,null,null,null,null,null,null,null,null,null,null,null,null,null,null,null,null,null,null,null,null,null,null,2.0833333333333332E-2]
[null,null,null,null,null,null,null,null,null,null,null,null,null,null,null,null,null,null,null,null,null,null,null,null,null,null,null,null,null,null,null,null,null,null,null,null,null,null,null,null,null,null,null,null,null,null,null,null,null,null,null,null,null,null,null,null,null,null,null,null,null,null,null,null,null,null,null,null,null,null,null,null,null,null,null,null,null,null,null,null,null,null,null,null,null,null,null,null,null,null,null,null,null,null,null,null,null,null,null,null,null,null,null,null,null,null,null,null,null,null,null,null,null,null,null,null,null,null,null,null,null,null,null,null,null,null,null,null,null,null,null,null,null,null,null,null,null,null,null,null,null,null,null,null,null,null,null,null,null,null,null,null,null,null,null,null,null,null,null,null,null,null,null,null,null,null,null,null,null,null,null,null,null,null,null,null,null,null,null,null,null,null,null,null,null,null,null,null,null,null," ",null,null,null,null,null,null,null,null,null,null,null,null,null,null,null,null,null,null,null,null,null,null,null,null,null,null,null,null,null,null,null,null,null,null,null,null,null,null,null,null,null,null,null,null,"0бед",null,null,4.1666666666666664E-2,null,6.25E-2]
[null,null,null,null,null,null,null,null,null,null,null,null,null,null,null,null,null,null,null,null,null,null,null,null,null,null,null,null,null,null,null,null,null,null,null,null,null,null,null,null,null,null,null,null,null,null,null,null,null,null,null,null,null,null,null,null,null,null,null,null,null,null,null,null,null,null,null,null,null,null,null,null,null,null,null,null,null,null,null,null,null,null,null,null,null,null,null,null,null,null,null,null,null,null,null,null,null,null,null,null,null,null,null,null,null,null,null,null,null,null,null,null,null,null,null,null,null,null,null,null,null,null,null,null,null,null,null,null,null,null,null,null,null,null,null,null,null,null,null,null,null,null,null,null,null,null,null,null,null,null,null,null,null,null,null,null,null,null,null,null,null,null,null,null,null,null,null,null,null,null,null,null,null,null,null,null,null,null,null,null,null,null,null,null,null,null,null,null,null,null,"_______________С. А. Сорокина",null,null,null,null,null,null,null,null,null,null,null,null,null,null,null,null,null,null,null,"Л.А.Синченко",null,null,null,null,null,null,null,null,null,null,null,null,null,null,null,null,null,null,null,null,null,null,null,null,null,null,null,null,null,0.41666666666666669]
[null,null,null,null,null,null,null,null,null,null,null,null,null,null,null,null,null,null,null,null,null,null,null,null,null,null,null,null,null,null,null,null,null,null,null,null,null,null,null,null,null,null,null,null,null,null,null,null,null,null,null,null,null,null,null,null,null,null,null,null,null,null,null,null,null,null,null,null,null,null,null,null,null,null,null,null,null,null,null,null,null,null,null,null,null,null,null,null,null,null,null,null,null,null,null,null,null,null,null,null,null,null,null,null,null,null,null,null,null,null,null,null,null,null,null,null,null,null,null,null,null,null,null,null,null,null,null,null,null,null,null,null,null,null,null,null,null,null,null,null,null,null,null,null,null,null,null,null,null,null,null,null,null,null,null,null,null,null,null,null,null,null,null,null,null,null,null,null,null,null,null,null,null,null,null,null,null,null,null,null,null,null,null,null,null,null,null,null,null,null,"\"01\"",null,null,null,null,null,null,null,null,null," ",null,null,null,null,null,null,null,null,null,null,2020,null,null,null,null,null,null,null,null,null,null,null,null,null,null,null,null,null,null,null,null,null,null,null,null,null,null,null,null,0.45833333333333331]
[null,null,null,null,null,null,null,null,null,null,null,null,null,null,null,null,null,null,null,null,null,null,null,null,null,null,null,null,null,null,null,null,null,null,null,null,null,null,null,null,null,null,null,null,null,null,null,null,null,null,null,null,null,null,null,null,null,null,null,null,null,null,null,null,null,null,null,null,null,null,null,null,null,null,null,null,null,null,null,null,null,null,null,null,null,null,null,null,null,null,null,null,null,null,null,null,null,null,null,null,null,null,null,null,null,null,null,null,null,null,null,null,null,null,null,null,null,null,null,null,null,null,null,null,null,null,null,null,null,null,null,null,null,null,null,null,null,null,null,null,null,null,null,null,null,null,null,null,null,null,null,null,null,null,null,null,null,null,null,null,null,null,null,null,null,null,null,null,null,null,null,null,null,null,null,null,null,null,null,null,null,null,null,null,null,null,null,null,null,null,null,null,null,null,null,null,null,null,null,null,null,null,null,null,null,null,null,null,null,null,null,null,null,null,null,null,null,null,null,null,null,null,null,null,null,null,null,null,null,null,null,null,null,null,null,null,null,null,null,null,0.125,null,null,"Столбец1",null,null,null,null,null,1]
["ГРАФИК",null,null,null,null,null,null,null,null,null,null,null,null,null,null,null,null,null,null,null,null,null,null,null,null,null,null,null,null,null,null,null,null,null,null,null,null,null,null,null,null,null,null,null,null,null,null,null,null,null,null,null,null,null,null,null,null,null,null,null,null,null,null,null,null,null,null,null,null,null,null,null,null,null,null,null,null,null,null,null,null,null,null,null,null,null,null,null,null,null,null,null,null,null,null,null,null,null,null,null,null,null,null,null,null,null,null,null,null,null,null,null,null,null,null,null,null,null,null,null,null,null,null,null,null,null,null,null,null,null,null,null,null,null,null,null,null,null,null,null,null,null,null,null,null,null,null,null,null,null,null,null,null,null,null,null,null,null,null,null,null,null,null,null,null,null,null,null,null,null,null,null,null,null,null,null,null,null,null,null,null,null,null,null,null,null,null,null,null,null,null,null,null,null,null,null,null,null,null,null,null,null,null,null,null,null,null,null,null,null,null,null,null,null,null,null,null,null,null,null,null,null,null,null,null,null,null,null,null,null,null,null,null,null,null,null,null,null,null,null,0.14583333333333334,null,null,"Слезинский В.Е.,  управляющий участка",null,null,null,null,null,0.5]
["УЧЕТА ИСПОЛЬЗОВАНИЯ РАБОЧЕГО ВРЕМЕНИ ОБСЛУЖИВАЮЩЕГО ПЕРСОНАЛА",null,null,null,null,null,null,null,null,null,null,null,null,null,null,null,null,null,null,null,null,null,null,null,null,null,null,null,null,null,null,null,null,null,null,null,null,null,null,null,null,null,null,null,null,null,null,null,null,null,null,null,null,null,null,null,null,null,null,null,null,null,null,null,null,null,null,null,null,null,null,null,null,null,null,null,null,null,null,null,null,null,null,null,null,null,null,null,null,null,null,null,null,null,null,null,null,null,null,null,null,null,null,null,null,null,null,null,null,null,null,null,null,null,null,null,null,null,null,null,null,null,null,null,null,null,null,null,null,null,null,null,null,null,null,null,null,null,null,null,null,null,null,null,null,null,null,null,null,null,null,null,null,null,null,null,null,null,null,null,null,null,null,null,null,null,null,null,null,null,null,null,null,null,null,null,null,null,null,null,null,null,null,null,null,null,null,null,null,null,null,null,null,null,null,null,null,null,null,null,null,null,null,null,null,null,null,null,null,null,null,null,null,null,null,null,null,null,null,null,null,null,null,null,null,null,null,null,null,null,null,null,null,null,null,null,null,null,null,null,0.16666666666666666,null,null,"Медведев А.П., слесарь-ремонтник",null,null,null,null,null,0.25]
["2020-10-01",null,null,null,null,null,null,null,null,null,null,null,null,null,null,null,null,null,null,null,null,null,null,null,null,null,null,null,null,null,null,null,null,null,null,null,null,null,null,null,null,null,null,null,null,null,null,null,null,null,null,null,null,null,null,null,null,null,null,null,null,null,null,null,null,null,null,null,null,null,null,null,null,null,null,null,null,null,null,null,null,null,null,null,null,null,null,null,null,null,null,null,null,null,null,null,null,null,null,null,null,null,null,null,null,null,null,null,null,null,null,null,null,null,null,null,null,null,null,null,null,null,null,null,null,null,null,null,null,null,null,null,null,null,null,null,null,null,null,null,null,null,null,null,null,null,null,null,null,null,null,null,null,null,null,null,null,null,null,null,null,null,null,null,null,null,null,null,null,null,null,null,null,null,null,null,null,null,null,null,null,null,null,null,null,null,null,null,null,null,null,null,null,null,null,null,null,null,null,null,null,null,null,null,null,null,null,null,null,null,null,null,null,null,null,null,null,null,null,null,null,null,null,null,null,null,null,null,null,null,null,null,"октябрь",null,null,null,null,null,null,null,0.1875,null,null,"Береговой Г.П., электрик"]
[null,null,null,null,null,null,null,null,null,null,null,null,null,null,null,null,null,null,null,null,null,null,null,null,null,null,null,null,null,null,null,null,null,null,null,null,null,null,null,null,null,null,null,null,null,null,null,null,null,null,null,null,null,null,null,null,null,null,null,null,null,null,null,null,null,null,null,null,null,null,null,null,null,null,null,null,null,null,null,null,null,null,null,null,null,null,null,null,null,null,null,null,null,null,null,null,null,null,null,null,null,null,null,null,null,null,null,null,null,null,null,null,null,null,null,null,null,null,null,null,null,null,null,null,null,null,null,null,null,null,null,null,null,null,null,null,null,null,null,null,null,null,null,null,null,null,null,null,null,null,null,null,null,null,null,null,null,null,null,null,null,null,null,null,null,null,null,null,null,null,null,null,null,null,null,null,null,null,null,null,null,null,null,null,null,null,null,null,null,null,null,null,null,null,null,null,null,null,null,null,null,null,null,null,null,null,null,null,null,null,null,null,null,null,null,null,null,null,null,null,null,null,null,null,null,null,null,null,null,null,null,null,null,null,null,null,null,null,null,null,0.20833333333333334,null,null,"Воротынцева В.Н., кассир билетный        Ч"]
["№",null,null,null,null,"Фамилия Инициалы",null,null,null,null,null,null,null,null,null,null,null,null,null,null,null,null,null,"Ставка",null,null,null,null,1,null,null,null,null,null,2,null,null,null,null,null,3,null,null,null,null,null,4,null,null,null,null,null,5,null,null,null,null,null,6,null,null,null,null,null,7,null,null,null,null,null,8,null,null,null,null,null,9,null,null,null,null,null,10,null,null,null,null,null,11,null,null,null,null,null,12,null,null,null,null,null,13,null,null,null,null,null,14,null,null,null,null,null,15,null,null,null,null,null,16,null,null,null,null,null,17,null,null,null,null,null,18,null,null,null,null,null,19,null,null,null,null,null,20,null,null,null,null,null,21,null,null,null,null,null,22,null,null,null,null,null,23,null,null,null,null,null,24,null,null,null,null,null,25,null,null,null,null,null,26,null,null,null,null,null,27,null,null,null,null,null,28,null,null,null,null,null,{"$f":"IF(29<=$IE$7,29,\"-\")","v":29},null,null,null,null,null,{"$f":"IF(30<=$IE$7,30,\"-\")","v":30},null,null,null,null,null,{"$f":"IF(31<=$IE$7,31,\"-\")","v":31},null,null,null,null,null,"ВСЕГО",null,null,null,null,null,null,null,null,null,null,null,null,null,null,null,null,null,null,"по календарю",null,null,null,null,null,null,0.22916666666666666,null,null,"Окорочкова О.Т., кассир билетный            НЧ"]
[null,null,null,null,null,null,null,null,null,null,null,null,null,null,null,null,null,null,null,null,null,null,null,null,null,null,null,null,null,null,null,null,null,null,null,null,null,null,null,null,null,null,null,null,null,null,null,null,null,null,null,null,null,null,null,null,null,null,null,null,null,null,null,null,null,null,null,null,null,null,null,null,null,null,null,null,null,null,null,null,null,null,null,null,null,null,null,null,null,null,null,null,null,null,null,null,null,null,null,null,null,null,null,null,null,null,null,null,null,null,null,null,null,null,null,null,null,null,null,null,null,null,null,null,null,null,null,null,null,null,null,null,null,null,null,null,null,null,null,null,null,null,null,null,null,null,null,null,null,null,null,null,null,null,null,null,null,null,null,null,null,null,null,null,null,null,null,null,null,null,null,null,null,null,null,null,null,null,null,null,null,null,null,null,null,null,null,null,null,null,null,null,null,null,null,null,null,null,null,null,null,null,null,null,null,null,null,null,null,null,null,null,null,null,"дней",null,null,null,null,null,null,null,null,null,null,null,null,null,null,null,null,null,"часов","дней","часов",null,null,null,null,null,0.25,null,null,"Пермякова Т.М., контролёр-посадчик аттракциона    Ч"]
[null,null,null,null,null,null,null,null,null,null,null,null,null,null,null,null,null,null,null,null,null,null,null,null,null,null,null,null,{"$f":"IFERROR($A$17+AC19-1,\"-\")","v":"2020-10-01"},null,null,null,null,null,{"$f":"IFERROR($A$17+AI19-1,\"-\")","v":"2020-10-02"},null,null,null,null,null,{"$f":"IFERROR($A$17+AO19-1,\"-\")","v":"2020-10-03"},null,null,null,null,null,{"$f":"IFERROR($A$17+AU19-1,\"-\")","v":"2020-10-04"},null,null,null,null,null,{"$f":"IFERROR($A$17+BA19-1,\"-\")","v":"2020-10-05"},null,null,null,null,null,{"$f":"IFERROR($A$17+BG19-1,\"-\")","v":"2020-10-06"},null,null,null,null,null,{"$f":"IFERROR($A$17+BM19-1,\"-\")","v":"2020-10-07"},null,null,null,null,null,{"$f":"IFERROR($A$17+BS19-1,\"-\")","v":"2020-10-08"},null,null,null,null,null,{"$f":"IFERROR($A$17+BY19-1,\"-\")","v":"2020-10-09"},null,null,null,null,null,{"$f":"IFERROR($A$17+CE19-1,\"-\")","v":"2020-10-10"},null,null,null,null,null,{"$f":"IFERROR($A$17+CK19-1,\"-\")","v":"2020-10-11"},null,null,null,null,null,{"$f":"IFERROR($A$17+CQ19-1,\"-\")","v":"2020-10-12"},null,null,null,null,null,{"$f":"IFERROR($A$17+CW19-1,\"-\")","v":"2020-10-13"},null,null,null,null,null,{"$f":"IFERROR($A$17+DC19-1,\"-\")","v":"2020-10-14"},null,null,null,null,null,{"$f":"IFERROR($A$17+DI19-1,\"-\")","v":"2020-10-15"},null,null,null,null,null,{"$f":"IFERROR($A$17+DO19-1,\"-\")","v":"2020-10-16"},null,null,null,null,null,{"$f":"IFERROR($A$17+DU19-1,\"-\")","v":"2020-10-17"},null,null,null,null,null,{"$f":"IFERROR($A$17+EA19-1,\"-\")","v":"2020-10-18"},null,null,null,null,null,{"$f":"IFERROR($A$17+EG19-1,\"-\")","v":"2020-10-19"},null,null,null,null,null,{"$f":"IFERROR($A$17+EM19-1,\"-\")","v":"2020-10-20"},null,null,null,null,null,{"$f":"IFERROR($A$17+ES19-1,\"-\")","v":"2020-10-21"},null,null,null,null,null,{"$f":"IFERROR($A$17+EY19-1,\"-\")","v":"2020-10-22"},null,null,null,null,null,{"$f":"IFERROR($A$17+FE19-1,\"-\")","v":"2020-10-23"},null,null,null,null,null,{"$f":"IFERROR($A$17+FK19-1,\"-\")","v":"2020-10-24"},null,null,null,null,null,{"$f":"IFERROR($A$17+FQ19-1,\"-\")","v":"2020-10-25"},null,null,null,null,null,{"$f":"IFERROR($A$17+FW19-1,\"-\")","v":"2020-10-26"},null,null,null,null,null,{"$f":"IFERROR($A$17+GC19-1,\"-\")","v":"2020-10-27"},null,null,null,null,null,{"$f":"IFERROR($A$17+GI19-1,\"-\")","v":"2020-10-28"},null,null,null,null,null,{"$f":"IFERROR($A$17+GO19-1,\"-\")","v":"2020-10-29"},null,null,null,null,null,{"$f":"IFERROR($A$17+GU19-1,\"-\")","v":"2020-10-30"},null,null,null,null,null,{"$f":"IFERROR($A$17+HA19-1,\"-\")","v":"2020-10-31"},null,null,null,null,null,null,null,null,null,null,null,null,null,null,null,null,null,null,null,null,null,null,null,null,null,null,null,null,null,null,null,0.27083333333333331,null,null,"Алексеева Р.И., котролёр-посадчик аттракциона     Ч"]
[1,null,null,null,null,"Слезинский В.Е  управляющий участка",null,null,null,null,null,null,null,null,null,null,null,null,null,null,null,null,null,1,null,null,null,null,0.41666666666666669,null,null,null,null,null,0.41666666666666669,null,null,null,null,null,0.375,null,null,null,null,null,0.375,null,null,null,null,null,0.41666666666666669,null,null,null,null,null,0.41666666666666669,null,null,null,null,null,"В",null,null,null,null,null,0.41666666666666669,null,null,null,null,null,0.41666666666666669,null,null,null,null,null,0.375,null,null,null,null,null,0.375,null,null,null,null,null,0.375,null,null,null,null,null,0.41666666666666669,null,null,null,null,null,"В",null,null,null,null,null,0.375,null,null,null,null,null,0.375,null,null,null,null,null,0.375,null,null,null,null,null,0.375,null,null,null,null,null,0.375,null,null,null,null,null,0.41666666666666669,null,null,null,null,null,"В",null,null,null,null,null,0.375,null,null,null,null,null,0.375,null,null,null,null,null,0.375,null,null,null,null,null,0.375,null,null,null,null,null,0.375,null,null,null,null,null,0.41666666666666669,null,null,null,null,null,"В",null,null,null,null,null,0.375,null,null,null,null,null,0.375,null,null,null,null,null,0.375,null,null,null,null,null,{"$f":"COUNT(AC22:HF22)","v":27},null,null,null,null,null,null,null,null,null,null,null,null,null,null,null,null,null,{"$f":"SUM(IFERROR(AC23:HF23-AC22:HF22-AC24:HF24,0))","v":7.3333333333333375},{"$f":"VLOOKUP($HY$17,'[5]производственный календарь '!$B$2:$D$13,3,0)","v":22},{"$f":"VLOOKUP($HY$17,'[5]производственный календарь '!$B$2:$D$13,2,0)","v":176}]
[null,null,null,null,null,null,null,null,null,null,null,null,null,null,null,null,null,null,null,null,null,null,null,null,null,null,null,null,0.83333333333333337,null,null,null,null,null,0.83333333333333337,null,null,null,null,null,0.83333333333333337,null,null,null,null,null,0.83333333333333337,null,null,null,null,null,0.83333333333333337,null,null,null,null,null,0.66666666666666663,null,null,null,null,null,"В",null,null,null,null,null,0.83333333333333337,null,null,null,null,null,0.83333333333333337,null,null,null,null,null,0.83333333333333337,null,null,null,null,null,0.83333333333333337,null,null,null,null,null,0.83333333333333337,null,null,null,null,null,0.66666666666666663,null,null,null,null,null,"В",null,null,null,null,null,0.83333333333333337,null,null,null,null,null,0.83333333333333337,null,null,null,null,null,0.83333333333333337,null,null,null,null,null,0.83333333333333337,null,null,null,null,null,0.83333333333333337,null,null,null,null,null,0.66666666666666663,null,null,null,null,null,"В",null,null,null,null,null,0.83333333333333337,null,null,null,null,null,0.83333333333333337,null,null,null,null,null,0.83333333333333337,null,null,null,null,null,0.83333333333333337,null,null,null,null,null,0.83333333333333337,null,null,null,null,null,0.66666666666666663,null,null,null,null,null,"В",null,null,null,null,null,0.83333333333333337,null,null,null,null,null,0.83333333333333337,null,null,null,null,null,0.83333333333333337,null,null,null,null,null,null,null,null,null,null,null,null,null,null,null,null,null,null,null,null,null,null,null,null,null,null,null,null,null,null,null,null,null,null,"Перминов К.И., дежурный зала"]
[null,null,null,null,null,null,null,null,null,null,null,null,null,null,null,null,null,null,null,null,null,null,null,"обед",null,null,null,null,"04:00:00",null,null,null,null,null,"04:00:00",null,null,null,null,null,"04:00:00",null,null,null,null,null,"04:00:00",null,null,null,null,null,"04:00:00",null,null,null,null,null,"01:00:00",null,null,null,null,null,"В",null,null,null,null,null,"04:00:00",null,null,null,null,null,"04:00:00",null,null,null,null,null,"04:00:00",null,null,null,null,null,"04:00:00",null,null,null,null,null,"04:00:00",null,null,null,null,null,"01:00:00",null,null,null,null,null,"В",null,null,null,null,null,"04:00:00",null,null,null,null,null,"04:00:00",null,null,null,null,null,"04:00:00",null,null,null,null,null,"04:00:00",null,null,null,null,null,"04:00:00",null,null,null,null,null,"01:00:00",null,null,null,null,null,"В",null,null,null,null,null,"04:00:00",null,null,null,null,null,"04:00:00",null,null,null,null,null,"04:00:00",null,null,null,null,null,"04:00:00",null,null,null,null,null,"04:00:00",null,null,null,null,null,"01:00:00",null,null,null,null,null,"В",null,null,null,null,null,"04:00:00",null,null,null,null,null,"04:00:00",null,null,null,null,null,"04:00:00",null,null,null,null,null,null,null,null,null,null,null,null,null,null,null,null,null,null,null,null,null,null,null,null,null,null,null,null,null,null,null,null,null,null,"Перминов К.И., кассир"]
[null,null,null,null,null,null,null,null,null,null,null,null,null,null,null,null,null,null,null,null,null,null,null,"р.д.",null,null,null,null,{"$f":"IFERROR(AC23-AC22-AC24,0)","v":"06:00:00"},null,null,null,null,null,{"$f":"IFERROR(AI23-AI22-AI24,0)","v":"06:00:00"},null,null,null,null,null,{"$f":"IFERROR(AO23-AO22-AO24,0)","v":"07:00:00"},null,null,null,null,null,{"$f":"IFERROR(AU23-AU22-AU24,0)","v":"07:00:00"},null,null,null,null,null,{"$f":"IFERROR(BA23-BA22-BA24,0)","v":"06:00:00"},null,null,null,null,null,{"$f":"IFERROR(BG23-BG22-BG24,0)","v":"05:00:00"},null,null,null,null,null,{"$f":"IFERROR(BM23-BM22-BM24,0)","v":"00:00:00"},null,null,null,null,null,{"$f":"IFERROR(BS23-BS22-BS24,0)","v":"06:00:00"},null,null,null,null,null,{"$f":"IFERROR(BY23-BY22-BY24,0)","v":"06:00:00"},null,null,null,null,null,{"$f":"IFERROR(CE23-CE22-CE24,0)","v":"07:00:00"},null,null,null,null,null,{"$f":"IFERROR(CK23-CK22-CK24,0)","v":"07:00:00"},null,null,null,null,null,{"$f":"IFERROR(CQ23-CQ22-CQ24,0)","v":"07:00:00"},null,null,null,null,null,{"$f":"IFERROR(CW23-CW22-CW24,0)","v":"05:00:00"},null,null,null,null,null,{"$f":"IFERROR(DC23-DC22-DC24,0)","v":"00:00:00"},null,null,null,null,null,{"$f":"IFERROR(DI23-DI22-DI24,0)","v":"07:00:00"},null,null,null,null,null,{"$f":"IFERROR(DO23-DO22-DO24,0)","v":"07:00:00"},null,null,null,null,null,{"$f":"IFERROR(DU23-DU22-DU24,0)","v":"07:00:00"},null,null,null,null,null,{"$f":"IFERROR(EA23-EA22-EA24,0)","v":"07:00:00"},null,null,null,null,null,{"$f":"IFERROR(EG23-EG22-EG24,0)","v":"07:00:00"},null,null,null,null,null,{"$f":"IFERROR(EM23-EM22-EM24,0)","v":"05:00:00"},null,null,null,null,null,{"$f":"IFERROR(ES23-ES22-ES24,0)","v":"00:00:00"},null,null,null,null,null,{"$f":"IFERROR(EY23-EY22-EY24,0)","v":"07:00:00"},null,null,null,null,null,{"$f":"IFERROR(FE23-FE22-FE24,0)","v":"07:00:00"},null,null,null,null,null,{"$f":"IFERROR(FK23-FK22-FK24,0)","v":"07:00:00"},null,null,null,null,null,{"$f":"IFERROR(FQ23-FQ22-FQ24,0)","v":"07:00:00"},null,null,null,null,null,{"$f":"IFERROR(FW23-FW22-FW24,0)","v":"07:00:00"},null,null,null,null,null,{"$f":"IFERROR(GC23-GC22-GC24,0)","v":"05:00:00"},null,null,null,null,null,{"$f":"IFERROR(GI23-GI22-GI24,0)","v":"00:00:00"},null,null,null,null,null,{"$f":"IFERROR(GO23-GO22-GO24,0)","v":"07:00:00"},null,null,null,null,null,{"$f":"IFERROR(GU23-GU22-GU24,0)","v":"07:00:00"},null,null,null,null,null,{"$f":"IFERROR(HA23-HA22-HA24,0)","v":"07:00:00"},null,null,null,null,null,null,null,null,null,null,null,null,null,null,null,null,null,null,null,null,null,null,null,{"$f":"SUM(AC25:HF25)","v":7.3333333333333375},null,null,null,null,null,null,null,null,null,null,"Бутелин Ю.Н., сторож"]
[null,null,null,null,null,null,null,null,null,null,null,null,null,null,null,null,null,null,null,null,null,null,null,"пр",null,null,null,null,null,null,null,null,null,null,null,null,null,null,null,null,null,null,null,null,null,null,null,null,null,null,null,null,null,null,null,null,null,null,null,null,null,null,null,null,null,null,null,null,null,null,null,null,null,null,null,null,null,null,null,null,null,null,null,null,null,null,null,null,null,null,null,null,null,null,null,null,null,null,null,null,null,null,null,null,null,null,null,null,null,null,null,null,null,null,null,null,null,null,null,null,null,null,null,null,null,null,null,null,null,null,null,null,null,null,null,null,null,null,null,null,null,null,null,null,null,null,null,null,null,null,null,null,null,null,null,null,null,null,null,null,null,null,null,null,null,null,null,null,null,null,null,null,null,null,null,null,null,null,null,null,null,null,null,null,null,null,null,null,null,null,null,null,null,null,null,null,null,null,null,null,null,null,null,null,null,null,null,null,null,null,null,null,null,null,null,null,null,null,null,null,null,null,null,null,null,null,null,null,null,null,null,null,null,null,null,null,null,null,null,null,null,null,null,"Бутелин Ю.Н., контролёр-посадчик"]
[null,null,null,null,null,null,null,null,null,null,null,null,null,null,null,null,null,null,null,null,null,null,null,null,null,null,null,null,null,null,null,null,null,null,null,null,null,null,null,null,null,null,null,null,null,null,null,null,null,null,null,null,null,null,null,null,null,null,null,null,null,null,null,null,null,null,null,null,null,null,null,null,null,null,null,null,null,null,null,null,null,null,null,null,null,null,null,null,null,null,null,null,null,null,null,null,null,null,null,null,null,null,null,null,null,null,null,null,null,null,null,null,null,null,null,null,null,null,null,null,null,null,null,null,null,null,null,null,null,null,null,null,null,null,null,null,null,null,null,null,null,null,null,null,null,null,null,null,null,null,null,null,null,null,null,null,null,null,null,null,null,null,null,null,null,null,null,null,null,null,null,null,null,null,null,null,null,null,null,null,null,null,null,null,null,null,null,null,null,null,null,null,null,null,null,null,null,null,null,null,null,null,null,null,null,null,null,null,null,null,null,null,null,null,null,null,null,null,null,null,null,null,null,null,null,null,null,null,null,null,null,null,null,null,null,null,null," ",null,null,null,null,null,"Медведев А.П., сторож"]
[null,null,null,null,null,null,null,null,null,null,null,null,null,null,null,null,null,null,null,null,null,null,null,null,null,null,null,null,null,null,null,null,null,null,null,null,null,null,null,null,null,null,null,null,null,null,null,null,null,null,null,null,null,null,null,null,null,null,null,null,null,null,null,null,null,null,null,null,null,null,null,null,null,null,null,null,null,null,null,null,null,null,null,null,null,null,null,null,null,null,null,null,null,null,null,null,null,null,null,null,null,null,null,null,null,null,null,null,null,null,null,null,null,null,null,null,null,null,null,null,null,null,null,null,null,null,null,null,null,null,null,null,null,null,null,null,null,null,null,null,null,null,null,null,null,null,null,null,null,null,null,null,null,null,null,null,null,null,null,null,null,null,null,null,null,null,null,null,null,null,null,null,null,null,null,null,null,null,null,null,null,null,null,null,null,null,null,null,null,null,null,null,null,null,null,null,null,null,null,null,null,null,null,null,null,null,null,null,null,null,null,null,null,null,null,null,null,null,null,null,null,null,null,null,null,null,null,null,null,null,null,null,null,null,null,null,null,null,null,null,4.1666666666666664E-2,null,null,"Пермякова Т.М., контролёр-посадчик аттракциона    НЧ"]
[null,null,null,null,null,null,null,null,null,null,null,null,null,null,null,null,null,null,null,null,null,null,null,null,null,null,null,null,null,null,null,null,null,null,null,null,null,null,null,null,null,null,null,null,null,null,null,null,null,null,null,null,null,null,null,null,null,null,null,null,null,null,null,null,null,null,null,null,null,null,null,null,null,null,null,null,null,null,null,null,null,null,null,null,null,null,null,null,null,null,null,null,null,null,null,null,null,null,null,null,null,null,null,null,null,null,null,null,null,null,null,null,null,null,null,null,null,null,null,null,null,null,null,null,null,null,null,null,null,null,null,null,null,null,null,null,null,null,null,null,null,null,null,null,null,null,null,null,null,null,null,null,null,null,null,null,null,null,null,null,null,null,null,null,null,null,null,null,null,null,null,null,null,null,null,null,null,null,null,null,null,null,null,null,null,null,null,null,null,null,null,null,null,null,null,null,null,null,null,null,null,null,null,null,null,null,null,null,null,null,null,null,null,null,null,null,null,null,null,null,null,null,null,null,null,null,null,null,null,null,null,null,null,null,null,null,null,null,null,null,0.5,null,null,"Воротынцева В.Н., кассир билетный        НЧ"]
[null,null,null,null,null,null,null,null,null,null,null,null,null,null,null,null,null,null,null,null,null,null,null,null,null,null,null,null,null,null,null,null,null,null,null,null,null,null,null,null,null,null,null,null,null,null,null,null,null,null,null,null,null,null,null,null,null,null,null,null,null,null,null,null,null,null,null,null,null,null,null,null,null,null,null,null,null,null,null,null,null,null,null,null,null,null,null,null,null,null,null,null,null,null,null,null,null,null,null,null,null,null,null,null,null,null,null,null,null,null,null,null,null,null,null,null,null,null,null,null,null,null,null,null,null,null,null,null,null,null,null,null,null,null,null,null,null,null,null,null,null,null,null,null,null,null,null,null,null,null,null,null,null,null,null,null,null,null,null,null,null,null,null,null,null,null,null,null,null,null,null,null,null,null,null,null,null,null,null,null,null,null,null,null,null,null,null,null,null,null,null,null,null,null,null,null,null,null,null,null,null,null,null,null,null,null,null,null,null,null,null,null,null,null,null,null,null,null,null,null,null,null,null,null,null,null,null,null,null,null,null,null,null,null,null,null,null,null,null,null,0.33333333333333331,null,null,"Окорочкова О.Т., кассир билетный            Ч"]
[null,null,null,null,null,null,null,null,null,null,null,null,null,null,null,null,null,null,null,null,null,null,null,null,null,null,null,null,null,null,null,null,null,null,null,null,null,null,null,null,null,null,null,null,null,null,null,null,null,null,null,null,null,null,null,null,null,null,null,null,null,null,null,null,null,null,null,null,null,null,null,null,null,null,null,null,null,null,null,null,null,null,null,null,null,null,null,null,null,null,null,null,null,null,null,null,null,null,null,null,null,null,null,null,null,null,null,null,null,null,null,null,null,null,null,null,null,null,null,null,null,null,null,null,null,null,null,null,null,null,null,null,null,null,null,null,null,null,null,null,null,null,null,null,null,null,null,null,null,null,null,null,null,null,null,null,null,null,null,null,null,null,null,null,null,null,null,null,null,null,null,null,null,null,null,null,null,null,null,null,null,null,null,null,null,null,null,null,null,null,null,null,null,null,null,null,null,null,null,null,null,null,null,null,null,null,null,null,null,null,null,null,null,null,null,null,null,null,null,null,null,null,null,null,null,null,null,null,null,null,null,null,null,null,null,null,null,null,null,null,0.66666666666666663,null,null,"Алексеева Р.И., котролёр-посадчик аттракциона     НЧ"]
[null,null,null,null,null,null,null,null,null,null,null,null,null,null,null,null,null,null,null,null,null,null,null,null,null,null,null,null,null,null,null,null,null,null,null,null,null,null,null,null,null,null,null,null,null,null,null,null,null,null,null,null,null,null,null,null,null,null,null,null,null,null,null,null,null,null,null,null,null,null,null,null,null,null,null,null,null,null,null,null,null,null,null,null,null,null,null,null,null,null,null,null,null,null,null,null,null,null,null,null,null,null,null,null,null,null,null,null,null,null,null,null,null,null,null,null,null,null,null,null,null,null,null,null,null,null,null,null,null,null,null,null,null,null,null,null,null,null,null,null,null,null,null,null,null,null,null,null,null,null,null,null,null,null,null,null,null,null,null,null,null,null,null,null,null,null,null,null,null,null,null,null,null,null,null,null,null,null,null,null,null,null,null,null,null,null,null,null,null,null,null,null,null,null,null,null,null,null,null,null,null,null,null,null,null,null,null,null,null,null,null,null,null,null,null,null,null,null,null,null,null,null,null,null,null,null,null,null,null,null,null,null,null,null,null,null,null,null,null,null,0.75]
[]
[]
[]
[null,null,null,null,null,null,null,null,null,null,null,null,null,null,null,null,null,null,null,null,null,null,null,null,null,null,null,null,null,null,null,null,null,null,null,null,null,null,null,null,null,null,null,null,null,null,null,null,null,null,null,null,null,null,null,null,null,null,null,null,null,null,null,null,null,null,null,null,null,null,null,null,null,null,null,null,null,null,null,null,null,null,null,null,null,null,null,null,null,null,null,null,null,null,null,null,null,null,null,null,null,null,null,null,null,null,null,null,null,null,null,null,null,null,null,null,null,null,null,null,null,null,null,null,null,null,null,null,null,null,null,null,null,null,null,null,null,null,null,null,null,null,null,null,null,null,null,null,null,null,null,null,null,null,null,null,null,null,null,null,null,null,null,null,null,null,null,null,null,null,null,null,null,null,null,null,null,null,null,null,null,null,null,null,null,null,null,null,null,null,null,null,null,null,null,null,null,null,null,null,null,null,null,null,null,null,null,null,null,null,null,null,null,null,null,null,null,null,null,null,null,null,null,null,null,null,null,null,null,null,null,null,null,null,null,null,null,null,null,null,0.3125]
[null,null,null,null,null,null,null,null,null,null,null,null,null,null,null,null,null,null,null,null,null,null,null,null,null,null,null,null,null,null,null,null,null,null,null,null,null,null,null,null,null,null,null,null,null,null,null,null,null,null,null,null,null,null,null,null,null,null,null,null,null,null,null,null,null,null,null,null,null,null,null,null,null,null,null,null,null,null,null,null,null,null,null,null,null,null,null,null,null,null,null,null,null,null,null,null,null,null,null,null,null,null,null,null,null,null,null,null,null,null,null,null,null,null,null,null,null,null,null,null,null,null,null,null,null,null,null,null,null,null,null,null,null,null,null,null,null,null,null,null,null,null,null,null,null,null,null,null,null,null,null,null,null,null,null,null,null,null,null,null,null,null,null,null,null,null,null,null,null,null,null,null,null,null,null,null,null,null,null,null,null,null,null,null,null,null,null,null,null,null,null,null,null,null,null,null,null,null,null,null,null,null,null,null,null,null,null,null,null,null,null,null,null,null,null,null,null,null,null,null,null,null,null,null,null,null,null,null,null,null,null,null,null,null,null,null,null,null,null,null,0.375]
[null,null,null,null,null,null,null,null,null,null,null,null,null,null,null,null,null,null,null,null,null,null,null,null,null,null,null,null,null,null,null,null,null,null,null,null,null,null,null,null,null,null,null,null,null,null,null,null,null,null,null,null,null,null,null,null,null,null,null,null,null,null,null,null,null,null,null,null,null,null,null,null,null,null,null,null,null,null,null,null,null,null,null,null,null,null,null,null,null,null,null,null,null,null,null,null,null,null,null,null,null,null,null,null,null,null,null,null,null,null,null,null,null,null,null,null,null,null,null,null,null,null,null,null,null,null,null,null,null,null,null,null,null,null,null,null,null,null,null,null,null,null,null,null,null,null,null,null,null,null,null,null,null,null,null,null,null,null,null,null,null,null,null,null,null,null,null,null,null,null,null,null,null,null,null,null,null,null,null,null,null,null,null,null,null,null,null,null,null,null,null,null,null,null,null,null,null,null,null,null,null,null,null,null,null,null,null,null,null,null,null,null,null,null,null,null,null,null,null,null,null,null,null,null,null,null,null,null,null,null,null,null,null,null,null,null,null,null,null,null,0.48958333333333331]
[null,null,null,null,null,null,null,null,null,null,null,null,null,null,null,null,null,null,null,null,null,null,null,null,null,null,null,null,null,null,null,null,null,null,null,null,null,null,null,null,null,null,null,null,null,null,null,null,null,null,null,null,null,null,null,null,null,null,null,null,null,null,null,null,null,null,null,null,null,null,null,null,null,null,null,null,null,null,null,null,null,null,null,null,null,null,null,null,null,null,null,null,null,null,null,null,null,null,null,null,null,null,null,null,null,null,null,null,null,null,null,null,null,null,null,null,null,null,null,null,null,null,null,null,null,null,null,null,null,null,null,null,null,null,null,null,null,null,null,null,null,null,null,null,null,null,null,null,null,null,null,null,null,null,null,null,null,null,null,null,null,null,null,null,null,null,null,null,null,null,null,null,null,null,null,null,null,null,null,null,null,null,null,null,null,null,null,null,null,null,null,null,null,null,null,null,null,null,null,null,null,null,null,null,null,null,null,null,null,null,null,null,null,null,null,null,null,null,null,null,null,null,null,null,null,null,null,null,null,null,null,null,null,null,null,null,null,null,null,null,0.54166666666666663]
[null,null,null,null,null,null,null,null,null,null,null,null,null,null,null,null,null,null,null,null,null,null,null,null,null,null,null,null,null,null,null,null,null,null,null,null,null,null,null,null,null,null,null,null,null,null,null,null,null,null,null,null,null,null,null,null,null,null,null,null,null,null,null,null,null,null,null,null,null,null,null,null,null,null,null,null,null,null,null,null,null,null,null,null,null,null,null,null,null,null,null,null,null,null,null,null,null,null,null,null,null,null,null,null,null,null,null,null,null,null,null,null,null,null,null,null,null,null,null,null,null,null,null,null,null,null,null,null,null,null,null,null,null,null,null,null,null,null,null,null,null,null,null,null,null,null,null,null,null,null,null,null,null,null,null,null,null,null,null,null,null,null,null,null,null,null,null,null,null,null,null,null,null,null,null,null,null,null,null,null,null,null,null,null,null,null,null,null,null,null,null,null,null,null,null,null,null,null,null,null,null,null,null,null,null,null,null,null,null,null,null,null,null,null,null,null,null,null,null,null,null,null,null,null,null,null,null,null,null,null,null,null,null,null,null,null,null,null,null,null,0.70833333333333337]
[null,null,null,null,null,null,null,null,null,null,null,null,null,null,null,null,null,null,null,null,null,null,null,null,null,null,null,null,null,null,null,null,null,null,null,null,null,null,null,null,null,null,null,null,null,null,null,null,null,null,null,null,null,null,null,null,null,null,null,null,null,null,null,null,null,null,null,null,null,null,null,null,null,null,null,null,null,null,null,null,null,null,null,null,null,null,null,null,null,null,null,null,null,null,null,null,null,null,null,null,null,null,null,null,null,null,null,null,null,null,null,null,null,null,null,null,null,null,null,null,null,null,null,null,null,null,null,null,null,null,null,null,null,null,null,null,null,null,null,null,null,null,null,null,null,null,null,null,null,null,null,null,null,null,null,null,null,null,null,null,null,null,null,null,null,null,null,null,null,null,null,null,null,null,null,null,null,null,null,null,null,null,null,null,null,null,null,null,null,null,null,null,null,null,null,null,null,null,null,null,null,null,null,null,null,null,null,null,null,null,null,null,null,null,null,null,null,null,null,null,null,null,null,null,null,null,null,null,null,null,null,null,null,null,null,null,null,null,null,null,0.72916666666666663]
[null,null,null,null,null,null,null,null,null,null,null,null,null,null,null,null,null,null,null,null,null,null,null,null,null,null,null,null,null,null,null,null,null,null,null,null,null,null,null,null,null,null,null,null,null,null,null,null,null,null,null,null,null,null,null,null,null,null,null,null,null,null,null,null,null,null,null,null,null,null,null,null,null,null,null,null,null,null,null,null,null,null,null,null,null,null,null,null,null,null,null,null,null,null,null,null,null,null,null,null,null,null,null,null,null,null,null,null,null,null,null,null,null,null,null,null,null,null,null,null,null,null,null,null,null,null,null,null,null,null,null,null,null,null,null,null,null,null,null,null,null,null,null,null,null,null,null,null,null,null,null,null,null,null,null,null,null,null,null,null,null,null,null,null,null,null,null,null,null,null,null,null,null,null,null,null,null,null,null,null,null,null,null,null,null,null,null,null,null,null,null,null,null,null,null,null,null,null,null,null,null,null,null,null,null,null,null,null,null,null,null,null,null,null,null,null,null,null,null,null,null,null,null,null,null,null,null,null,null,null,null,null,null,null,null,null,null,null,null,null,0.79166666666666663]
[null,null,null,null,null,null,null,null,null,null,null,null,null,null,null,null,null,null,null,null,null,null,null,null,null,null,null,null,null,null,null,null,null,null,null,null,null,null,null,null,null,null,null,null,null,null,null,null,null,null,null,null,null,null,null,null,null,null,null,null,null,null,null,null,null,null,null,null,null,null,null,null,null,null,null,null,null,null,null,null,null,null,null,null,null,null,null,null,null,null,null,null,null,null,null,null,null,null,null,null,null,null,null,null,null,null,null,null,null,null,null,null,null,null,null,null,null,null,null,null,null,null,null,null,null,null,null,null,null,null,null,null,null,null,null,null,null,null,null,null,null,null,null,null,null,null,null,null,null,null,null,null,null,null,null,null,null,null,null,null,null,null,null,null,null,null,null,null,null,null,null,null,null,null,null,null,null,null,null,null,null,null,null,null,null,null,null,null,null,null,null,null,null,null,null,null,null,null,null,null,null,null,null,null,null,null,null,null,null,null,null,null,null,null,null,null,null,null,null,null,null,null,null,null,null,null,null,null,null,null,null,null,null,null,null,null,null,null,null,null,0.75]
[null,null,null,null,null,null,null,null,null,null,null,null,null,null,null,null,null,null,null,null,null,null,null,null,null,null,null,null,null,null,null,null,null,null,null,null,null,null,null,null,null,null,null,null,null,null,null,null,null,null,null,null,null,null,null,null,null,null,null,null,null,null,null,null,null,null,null,null,null,null,null,null,null,null,null,null,null,null,null,null,null,null,null,null,null,null,null,null,null,null,null,null,null,null,null,null,null,null,null,null,null,null,null,null,null,null,null,null,null,null,null,null,null,null,null,null,null,null,null,null,null,null,null,null,null,null,null,null,null,null,null,null,null,null,null,null,null,null,null,null,null,null,null,null,null,null,null,null,null,null,null,null,null,null,null,null,null,null,null,null,null,null,null,null,null,null,null,null,null,null,null,null,null,null,null,null,null,null,null,null,null,null,null,null,null,null,null,null,null,null,null,null,null,null,null,null,null,null,null,null,null,null,null,null,null,null,null,null,null,null,null,null,null,null,null,null,null,null,null,null,null,null,null,null,null,null,null,null,null,null,null,null,null,null,null,null,null,null,null,null,0.77083333333333337]
[null,null,null,null,null,null,null,null,null,null,null,null,null,null,null,null,null,null,null,null,null,null,null,null,null,null,null,null,null,null,null,null,null,null,null,null,null,null,null,null,null,null,null,null,null,null,null,null,null,null,null,null,null,null,null,null,null,null,null,null,null,null,null,null,null,null,null,null,null,null,null,null,null,null,null,null,null,null,null,null,null,null,null,null,null,null,null,null,null,null,null,null,null,null,null,null,null,null,null,null,null,null,null,null,null,null,null,null,null,null,null,null,null,null,null,null,null,null,null,null,null,null,null,null,null,null,null,null,null,null,null,null,null,null,null,null,null,null,null,null,null,null,null,null,null,null,null,null,null,null,null,null,null,null,null,null,null,null,null,null,null,null,null,null,null,null,null,null,null,null,null,null,null,null,null,null,null,null,null,null,null,null,null,null,null,null,null,null,null,null,null,null,null,null,null,null,null,null,null,null,null,null,null,null,null,null,null,null,null,null,null,null,null,null,null,null,null,null,null,null,null,null,null,null,null,null,null,null,null,null,null,null,null,null,null,null,null,null,null,null,0.625]
[null,null,null,null,null,null,null,null,null,null,null,null,null,null,null,null,null,null,null,null,null,null,null,null,null,null,null,null,null,null,null,null,null,null,null,null,null,null,null,null,null,null,null,null,null,null,null,null,null,null,null,null,null,null,null,null,null,null,null,null,null,null,null,null,null,null,null,null,null,null,null,null,null,null,null,null,null,null,null,null,null,null,null,null,null,null,null,null,null,null,null,null,null,null,null,null,null,null,null,null,null,null,null,null,null,null,null,null,null,null,null,null,null,null,null,null,null,null,null,null,null,null,null,null,null,null,null,null,null,null,null,null,null,null,null,null,null,null,null,null,null,null,null,null,null,null,null,null,null,null,null,null,null,null,null,null,null,null,null,null,null,null,null,null,null,null,null,null,null,null,null,null,null,null,null,null,null,null,null,null,null,null,null,null,null,null,null,null,null,null,null,null,null,null,null,null,null,null,null,null,null,null,null,null,null,null,null,null,null,null,null,null,null,null,null,null,null,null,null,null,null,null,null,null,null,null,null,null,null,null,null,null,null,null,null,null,null,null,null,null,0.875]
[null,null,null,null,null,null,null,null,null,null,null,null,null,null,null,null,null,null,null,null,null,null,null,null,null,null,null,null,null,null,null,null,null,null,null,null,null,null,null,null,null,null,null,null,null,null,null,null,null,null,null,null,null,null,null,null,null,null,null,null,null,null,null,null,null,null,null,null,null,null,null,null,null,null,null,null,null,null,null,null,null,null,null,null,null,null,null,null,null,null,null,null,null,null,null,null,null,null,null,null,null,null,null,null,null,null,null,null,null,null,null,null,null,null,null,null,null,null,null,null,null,null,null,null,null,null,null,null,null,null,null,null,null,null,null,null,null,null,null,null,null,null,null,null,null,null,null,null,null,null,null,null,null,null,null,null,null,null,null,null,null,null,null,null,null,null,null,null,null,null,null,null,null,null,null,null,null,null,null,null,null,null,null,null,null,null,null,null,null,null,null,null,null,null,null,null,null,null,null,null,null,null,null,null,null,null,null,null,null,null,null,null,null,null,null,null,null,null,null,null,null,null,null,null,null,null,null,null,null,null,null,null,null,null,null,null,null,null,null,null,0.58333333333333337]
[null,null,null,null,null,null,null,null,null,null,null,null,null,null,null,null,null,null,null,null,null,null,null,null,null,null,null,null,null,null,null,null,null,null,null,null,null,null,null,null,null,null,null,null,null,null,null,null,null,null,null,null,null,null,null,null,null,null,null,null,null,null,null,null,null,null,null,null,null,null,null,null,null,null,null,null,null,null,null,null,null,null,null,null,null,null,null,null,null,null,null,null,null,null,null,null,null,null,null,null,null,null,null,null,null,null,null,null,null,null,null,null,null,null,null,null,null,null,null,null,null,null,null,null,null,null,null,null,null,null,null,null,null,null,null,null,null,null,null,null,null,null,null,null,null,null,null,null,null,null,null,null,null,null,null,null,null,null,null,null,null,null,null,null,null,null,null,null,null,null,null,null,null,null,null,null,null,null,null,null,null,null,null,null,null,null,null,null,null,null,null,null,null,null,null,null,null,null,null,null,null,null,null,null,null,null,null,null,null,null,null,null,null,null,null,null,null,null,null,null,null,null,null,null,null,null,null,null,null,null,null,null,null,null,null,null,null,null,null,null,0.83333333333333337]
[null,null,null,null,null,null,null,null,null,null,null,null,null,null,null,null,null,null,null,null,null,null,null,null,null,null,null,null,null,null,null,null,null,null,null,null,null,null,null,null,null,null,null,null,null,null,null,null,null,null,null,null,null,null,null,null,null,null,null,null,null,null,null,null,null,null,null,null,null,null,null,null,null,null,null,null,null,null,null,null,null,null,null,null,null,null,null,null,null,null,null,null,null,null,null,null,null,null,null,null,null,null,null,null,null,null,null,null,null,null,null,null,null,null,null,null,null,null,null,null,null,null,null,null,null,null,null,null,null,null,null,null,null,null,null,null,null,null,null,null,null,null,null,null,null,null,null,null,null,null,null,null,null,null,null,null,null,null,null,null,null,null,null,null,null,null,null,null,null,null,null,null,null,null,null,null,null,null,null,null,null,null,null,null,null,null,null,null,null,null,null,null,null,null,null,null,null,null,null,null,null,null,null,null,null,null,null,null,null,null,null,null,null,null,null,null,null,null,null,null,null,null,null,null,null,null,null,null,null,null,null,null,null,null,null,null,null,null,null,null,0.66666666666666663]
[null,null,null,null,null,null,null,null,null,null,null,null,null,null,null,null,null,null,null,null,null,null,null,null,null,null,null,null,null,null,null,null,null,null,null,null,null,null,null,null,null,null,null,null,null,null,null,null,null,null,null,null,null,null,null,null,null,null,null,null,null,null,null,null,null,null,null,null,null,null,null,null,null,null,null,null,null,null,null,null,null,null,null,null,null,null,null,null,null,null,null,null,null,null,null,null,null,null,null,null,null,null,null,null,null,null,null,null,null,null,null,null,null,null,null,null,null,null,null,null,null,null,null,null,null,null,null,null,null,null,null,null,null,null,null,null,null,null,null,null,null,null,null,null,null,null,null,null,null,null,null,null,null,null,null,null,null,null,null,null,null,null,null,null,null,null,null,null,null,null,null,null,null,null,null,null,null,null,null,null,null,null,null,null,null,null,null,null,null,null,null,null,null,null,null,null,null,null,null,null,null,null,null,null,null,null,null,null,null,null,null,null,null,null,null,null,null,null,null,null,null,null,null,null,null,null,null,null,null,null,null,null,null,null,null,null,null,null,null,null,0.9375]
[null,null,null,null,null,null,null,null,null,null,null,null,null,null,null,null,null,null,null,null,null,null,null,null,null,null,null,null,null,null,null,null,null,null,null,null,null,null,null,null,null,null,null,null,null,null,null,null,null,null,null,null,null,null,null,null,null,null,null,null,null,null,null,null,null,null,null,null,null,null,null,null,null,null,null,null,null,null,null,null,null,null,null,null,null,null,null,null,null,null,null,null,null,null,null,null,null,null,null,null,null,null,null,null,null,null,null,null,null,null,null,null,null,null,null,null,null,null,null,null,null,null,null,null,null,null,null,null,null,null,null,null,null,null,null,null,null,null,null,null,null,null,null,null,null,null,null,null,null,null,null,null,null,null,null,null,null,null,null,null,null,null,null,null,null,null,null,null,null,null,null,null,null,null,null,null,null,null,null,null,null,null,null,null,null,null,null,null,null,null,null,null,null,null,null,null,null,null,null,null,null,null,null,null,null,null,null,null,null,null,null,null,null,null,null,null,null,null,null,null,null,null,null,null,null,null,null,null,null,null,null,null,null,null,null,null,null,null,null,null,0.95833333333333337]
[null,null,null,null,null,null,null,null,null,null,null,null,null,null,null,null,null,null,null,null,null,null,null,null,null,null,null,null,null,null,null,null,null,null,null,null,null,null,null,null,null,null,null,null,null,null,null,null,null,null,null,null,null,null,null,null,null,null,null,null,null,null,null,null,null,null,null,null,null,null,null,null,null,null,null,null,null,null,null,null,null,null,null,null,null,null,null,null,null,null,null,null,null,null,null,null,null,null,null,null,null,null,null,null,null,null,null,null,null,null,null,null,null,null,null,null,null,null,null,null,null,null,null,null,null,null,null,null,null,null,null,null,null,null,null,null,null,null,null,null,null,null,null,null,null,null,null,null,null,null,null,null,null,null,null,null,null,null,null,null,null,null,null,null,null,null,null,null,null,null,null,null,null,null,null,null,null,null,null,null,null,null,null,null,null,null,null,null,null,null,null,null,null,null,null,null,null,null,null,null,null,null,null,null,null,null,null,null,null,null,null,null,null,null,null,null,null,null,null,null,null,null,null,null,null,null,null,null,null,null,null,null,null,null,null,null,null,null,null,null,0.97916666666666663]
[null,null,null,null,null,null,null,null,null,null,null,null,null,null,null,null,null,null,null,null,null,null,null,null,null,null,null,null,null,null,null,null,null,null,null,null,null,null,null,null,null,null,null,null,null,null,null,null,null,null,null,null,null,null,null,null,null,null,null,null,null,null,null,null,null,null,null,null,null,null,null,null,null,null,null,null,null,null,null,null,null,null,null,null,null,null,null,null,null,null,null,null,null,null,null,null,null,null,null,null,null,null,null,null,null,null,null,null,null,null,null,null,null,null,null,null,null,null,null,null,null,null,null,null,null,null,null,null,null,null,null,null,null,null,null,null,null,null,null,null,null,null,null,null,null,null,null,null,null,null,null,null,null,null,null,null,null,null,null,null,null,null,null,null,null,null,null,null,null,null,null,null,null,null,null,null,null,null,null,null,null,null,null,null,null,null,null,null,null,null,null,null,null,null,null,null,null,null,null,null,null,null,null,null,null,null,null,null,null,null,null,null,null,null,null,null,null,null,null,null,null,null,null,null,null,null,null,null,null,null,null,null,null,null,null,null,null,null,null,null,1]
[]
[null,null,null,null,null,null,null,null,null,null,null,null,null,null,null,null,null,null,null,null,null,null,null,null,null,null,null,null,null,null,null,null,null,null,null,null,null,null,null,null,null,null,null,null,null,null,null,null,null,null,null,null,null,null,null,null,null,null,null,null,null,null,null,null,null,null,null,null,null,null,null,null,null,null,null,null,null,null,null,null,null,null,null,null,null,null,null,null,null,null,null,null,null,null,null,null,null,null,null,null,null,null,null,null,null,null,null,null,null,null,null,null,null,null,null,null,null,null,null,null,null,null,null,null,null,null,null,null,null,null,null,null,null,null,null,null,null,null,null,null,null,null,null,null,null,null,null,null,null,null,null,null,null,null,null,null,null,null,null,null,null,null,null,null,null,null,null,null,null,null,null,null,null,null,null,null,null,null,null,null,null,null,null,null,null,null,null,null,null,null,null,null,null,null,null,null,null,null,null,null,null,null,null,null,null,null,null,null,null,null,null,null,null,null,null,null,null,null,null,null,null,null,null,null,null,null,null,null,null,null,null,null,null,null,null,null,null,null,null,null,"В"]
[null,null,null,null,null,null,null,null,null,null,null,null,null,null,null,null,null,null,null,null,null,null,null,null,null,null,null,null,null,null,null,null,null,null,null,null,null,null,null,null,null,null,null,null,null,null,null,null,null,null,null,null,null,null,null,null,null,null,null,null,null,null,null,null,null,null,null,null,null,null,null,null,null,null,null,null,null,null,null,null,null,null,null,null,null,null,null,null,null,null,null,null,null,null,null,null,null,null,null,null,null,null,null,null,null,null,null,null,null,null,null,null,null,null,null,null,null,null,null,null,null,null,null,null,null,null,null,null,null,null,null,null,null,null,null,null,null,null,null,null,null,null,null,null,null,null,null,null,null,null,null,null,null,null,null,null,null,null,null,null,null,null,null,null,null,null,null,null,null,null,null,null,null,null,null,null,null,null,null,null,null,null,null,null,null,null,null,null,null,null,null,null,null,null,null,null,null,null,null,null,null,null,null,null,null,null,null,null,null,null,null,null,null,null,null,null,null,null,null,null,null,null,null,null,null,null,null,null,null,null,null,null,null,null,null,null,null,null,null,null,"Б"]
[null,null,null,null,null,null,null,null,null,null,null,null,null,null,null,null,null,null,null,null,null,null,null,null,null,null,null,null,null,null,null,null,null,null,null,null,null,null,null,null,null,null,null,null,null,null,null,null,null,null,null,null,null,null,null,null,null,null,null,null,null,null,null,null,null,null,null,null,null,null,null,null,null,null,null,null,null,null,null,null,null,null,null,null,null,null,null,null,null,null,null,null,null,null,null,null,null,null,null,null,null,null,null,null,null,null,null,null,null,null,null,null,null,null,null,null,null,null,null,null,null,null,null,null,null,null,null,null,null,null,null,null,null,null,null,null,null,null,null,null,null,null,null,null,null,null,null,null,null,null,null,null,null,null,null,null,null,null,null,null,null,null,null,null,null,null,null,null,null,null,null,null,null,null,null,null,null,null,null,null,null,null,null,null,null,null,null,null,null,null,null,null,null,null,null,null,null,null,null,null,null,null,null,null,null,null,null,null,null,null,null,null,null,null,null,null,null,null,null,null,null,null,null,null,null,null,null,null,null,null,null,null,null,null,null,null,null,null,null,null,"К"]
[null,null,null,null,null,null,null,null,null,null,null,null,null,null,null,null,null,null,null,null,null,null,null,null,null,null,null,null,null,null,null,null,null,null,null,null,null,null,null,null,null,null,null,null,null,null,null,null,null,null,null,null,null,null,null,null,null,null,null,null,null,null,null,null,null,null,null,null,null,null,null,null,null,null,null,null,null,null,null,null,null,null,null,null,null,null,null,null,null,null,null,null,null,null,null,null,null,null,null,null,null,null,null,null,null,null,null,null,null,null,null,null,null,null,null,null,null,null,null,null,null,null,null,null,null,null,null,null,null,null,null,null,null,null,null,null,null,null,null,null,null,null,null,null,null,null,null,null,null,null,null,null,null,null,null,null,null,null,null,null,null,null,null,null,null,null,null,null,null,null,null,null,null,null,null,null,null,null,null,null,null,null,null,null,null,null,null,null,null,null,null,null,null,null,null,null,null,null,null,null,null,null,null,null,null,null,null,null,null,null,null,null,null,null,null,null,null,null,null,null,null,null,null,null,null,null,null,null,null,null,null,null,null,null,null,null,null,null,null,null,"О"]
[null,null,null,null,null,null,null,null,null,null,null,null,null,null,null,null,null,null,null,null,null,null,null,null,null,null,null,null,null,null,null,null,null,null,null,null,null,null,null,null,null,null,null,null,null,null,null,null,null,null,null,null,null,null,null,null,null,null,null,null,null,null,null,null,null,null,null,null,null,null,null,null,null,null,null,null,null,null,null,null,null,null,null,null,null,null,null,null,null,null,null,null,null,null,null,null,null,null,null,null,null,null,null,null,null,null,null,null,null,null,null,null,null,null,null,null,null,null,null,null,null,null,null,null,null,null,null,null,null,null,null,null,null,null,null,null,null,null,null,null,null,null,null,null,null,null,null,null,null,null,null,null,null,null,null,null,null,null,null,null,null,null,null,null,null,null,null,null,null,null,null,null,null,null,null,null,null,null,null,null,null,null,null,null,null,null,null,null,null,null,null,null,null,null,null,null,null,null,null,null,null,null,null,null,null,null,null,null,null,null,null,null,null,null,null,null,null,null,null,null,null,null,null,null,null,null,null,null,null,null,null,null,null,null,null,null,null,null,null,null,"П"]
[null,null,null,null,null,null,null,null,null,null,null,null,null,null,null,null,null,null,null,null,null,null,null,null,null,null,null,null,null,null,null,null,null,null,null,null,null,null,null,null,null,null,null,null,null,null,null,null,null,null,null,null,null,null,null,null,null,null,null,null,null,null,null,null,null,null,null,null,null,null,null,null,null,null,null,null,null,null,null,null,null,null,null,null,null,null,null,null,null,null,null,null,null,null,null,null,null,null,null,null,null,null,null,null,null,null,null,null,null,null,null,null,null,null,null,null,null,null,null,null,null,null,null,null,null,null,null,null,null,null,null,null,null,null,null,null,null,null,null,null,null,null,null,null,null,null,null,null,null,null,null,null,null,null,null,null,null,null,null,null,null,null,null,null,null,null,null,null,null,null,null,null,null,null,null,null,null,null,null,null,null,null,null,null,null,null,null,null,null,null,null,null,null,null,null,null,null,null,null,null,null,null,null,null,null,null,null,null,null,null,null,null,null,null,null,null,null,null,null,null,null,null,null,null,null,null,null,null,null,null,null,null,null,null,null,null,null,null,null,null,"ОТ"]
[null,null,null,null,null,null,null,null,null,null,null,null,null,null,null,null,null,null,null,null,null,null,null,null,null,null,null,null,null,null,null,null,null,null,null,null,null,null,null,null,null,null,null,null,null,null,null,null,null,null,null,null,null,null,null,null,null,null,null,null,null,null,null,null,null,null,null,null,null,null,null,null,null,null,null,null,null,null,null,null,null,null,null,null,null,null,null,null,null,null,null,null,null,null,null,null,null,null,null,null,null,null,null,null,null,null,null,null,null,null,null,null,null,null,null,null,null,null,null,null,null,null,null,null,null,null,null,null,null,null,null,null,null,null,null,null,null,null,null,null,null,null,null,null,null,null,null,null,null,null,null,null,null,null,null,null,null,null,null,null,null,null,null,null,null,null,null,null,null,null,null,null,null,null,null,null,null,null,null,null,null,null,null,null,null,null,null,null,null,null,null,null,null,null,null,null,null,null,null,null,null,null,null,null,null,null,null,null,null,null,null,null,null,null,null,null,null,null,null,null,null,null,null,null,null,null,null,null,null,null,null,null,null,null,null,null,null,null,null,null,"Р"]
[]
[]
[]
[]
[]
[]
[]
[]
[]
[]
[]
[]
[]
[]
[]
[]
[]
[]
[]
[]
[]
[]
[]
[]
[]
[null,null,null,null,null,null,null,null,null,null,null,null,null,null,null,null,null,null,null,null,null,null,null,null,null,null,null,null,null,null,null,null,null,null,null,null,null,null,null,null,null,null,null,null,null,null,null,null,null,null,null,null,null,null,null,null,null,null,null,null,null,null,null,null,null,null,null,null,null,null,null,null,null,null,null,null,null,null,null,null,null,null,null,null,null,null,null,null,null,null,null,null,null,null,null,null,null,null,null,null,null,null,null,null,null,null,null,null,null,null,null,null,null,null,null,null,null,null,null,null,null,null,null,null,null,null,null,null,null,null,null,null,null,null,null,null,null,null,null,null,null,null,null,null,null,null,null,null,null,null,null,null,null,null,null,null,null,null,null,null,null,null,null,null,null,null,null,null,null,null,null,null,null,null,null,null,null,null,null,null,null,null,null,null,null,null,null,null,null,null,null,null,null,null,null,null,null,null,null,null,null,null,null,null,null,null,null,null,null,null,null,null,null,null,null,null,null,null,null,null,null,null,null,null,null,null,null,null,null,null,null,null,null,null,null,null,null,null,null,null,"В"]
[]
[]
[]
[]
[]
[]
[]
[null,null,null,null,null,null,null,null,null,null,null,null,null,null,null,null,"С графиком ознакомлен(а):"]
[]
[null,null,null,null,null,null,null,null,null,null,null,null,null,null,null,null,1,null,null,"Слезинский В.Е. ",null,null,null,null,null,null,null,null,null,null,null,null,null,null,null,null,null,null,null,null,null,null,null,null,null,null,null,null,null,null,null,null,null,null,null,null,null,null,null,null,null,null,null,null,null,null,null,null,null,null,null,null,null,null,"\"___\"______________2020"]
[null,null,null,null,null,null,null,null,null,null,null,null,null,null,null,null,2,null,null,"Медведев А.П. (слесарь)",null,null,null,null,null,null,null,null,null,null,null,null,null,null,null,null,null,null,null,null,null,null,null,null,null,null,null,null,null,null,null,null,null,null,null,null,null,null,null,null,null,null,null,null,null,null,null,null,null,null,null,null,null,null,"\"___\"______________2020"]
[null,null,null,null,null,null,null,null,null,null,null,null,null,null,null,null,3,null,null,"Береговой Г.П.",null,null,null,null,null,null,null,null,null,null,null,null,null,null,null,null,null,null,null,null,null,null,null,null,null,null,null,null,null,null,null,null,null,null,null,null,null,null,null,null,null,null,null,null,null,null,null,null,null,null,null,null,null,null,"\"___\"______________2020"]
[null,null,null,null,null,null,null,null,null,null,null,null,null,null,null,null,4,null,null,"Воротынцева В.Н.",null,null,null,null,null,null,null,null,null,null,null,null,null,null,null,null,null,null,null,null,null,null,null,null,null,null,null,null,null,null,null,null,null,null,null,null,null,null,null,null,null,null,null,null,null,null,null,null,null,null,null,null,null,null,"\"___\"______________2020"]
[null,null,null,null,null,null,null,null,null,null,null,null,null,null,null,null,5,null,null,"Окорочкова О.Т.",null,null,null,null,null,null,null,null,null,null,null,null,null,null,null,null,null,null,null,null,null,null,null,null,null,null,null,null,null,null,null,null,null,null,null,null,null,null,null,null,null,null,null,null,null,null,null,null,null,null,null,null,null,null,"\"___\"______________2020"]
[null,null,null,null,null,null,null,null,null,null,null,null,null,null,null,null,6,null,null,"Пермякова Т.М.",null,null,null,null,null,null,null,null,null,null,null,null,null,null,null,null,null,null,null,null,null,null,null,null,null,null,null,null,null,null,null,null,null,null,null,null,null,null,null,null,null,null,null,null,null,null,null,null,null,null,null,null,null,null,"\"___\"______________2020"]
[null,null,null,null,null,null,null,null,null,null,null,null,null,null,null,null,7,null,null,"Алексеева Р.И.",null,null,null,null,null,null,null,null,null,null,null,null,null,null,null,null,null,null,null,null,null,null,null,null,null,null,null,null,null,null,null,null,null,null,null,null,null,null,null,null,null,null,null,null,null,null,null,null,null,null,null,null,null,null,"\"___\"______________2020"]
[null,null,null,null,null,null,null,null,null,null,null,null,null,null,null,null,8,null,null,"Перминов К.И.",null,null,null,null,null,null,null,null,null,null,null,null,null,null,null,null,null,null,null,null,null,null,null,null,null,null,null,null,null,null,null,null,null,null,null,null,null,null,null,null,null,null,null,null,null,null,null,null,null,null,null,null,null,null,"\"___\"______________2020"]
[null,null,null,null,null,null,null,null,null,null,null,null,null,null,null,null,9,null,null,"Бутелин  Ю.Н. ",null,null,null,null,null,null,null,null,null,null,null,null,null,null,null,null,null,null,null,null,null,null,null,null,null,null,null,null,null,null,null,null,null,null,null,null,null,null,null,null,null,null,null,null,null,null,null,null,null,null,null,null,null,null,"\"___\"______________2020"]
[null,null,null,null,null,null,null,null,null,null,null,null,null,null,null,null,10,null,null,"Медведев А.П. (сторож)",null,null,null,null,null,null,null,null,null,null,null,null,null,null,null,null,null,null,null,null,null,null,null,null,null,null,null,null,null,null,null,null,null,null,null,null,null,null,null,null,null,null,null,null,null,null,null,null,null,null,null,null,null,null,"\"___\"______________2020",null,null,null,null,null,null,null,null,null,null,null,null,null,null,null,null,null,null,null,null,null,null,null,null,null,null,null,null,null,null,null,null,null,null,null,null,null,null,null,null,null,null,null,null,null,null,null,null,null,null,null,null,null,null,null,null,null,null,null,null,null,null,null,null,null,null,"помогите прописать формулу УФ так, чтобы если в ячейке жёлтого цвета ЕСЛИ часы  > или <"]
[null,null,null,null,null,null,null,null,null,null,null,null,null,null,null,null,11,null,null,null,null,null,null,null,null,null,null,null,null,null,null,null,null,null,null,null,null,null,null,null,null,null,null,null,null,null,null,null,null,null,null,null,null,null,null,null,null,null,null,null,null,null,null,null,null,null,null,null,null,null,null,null,null,null,"\"___\"______________2020"]
[null,null,null,null,null,null,null,null,null,null,null,null,null,null,null,null,12,null,null,null,null,null,null,null,null,null,null,null,null,null,null,null,null,null,null,null,null,null,null,null,null,null,null,null,null,null,null,null,null,null,null,null,null,null,null,null,null,null,null,null,null,null,null,null,null,null,null,null,null,null,null,null,null,null,"\"___\"______________2020"]
[]
[]
[null,null,null,null,null,null,null,null,null,null,null,null,null,null,null,null,null,null,null,null,null,null,null,null,null,null,null,null,null,null,null,null,null,null,null,null,null,null,null,null,null,null,null,null,null,null,null,null,null,null,null,null,null,null,null,null,null,null,null,null,null,null,null,null,null,null,null,null,null,null,null,null,null,null,null,null,null,null,null,null,null,null,null,null,null,null,null,null,null,null,null,null,null,null,null,null,null,null,null,null,null,null,null,null,null,null,null,null,null,null,null,null,null,null,null,null,null,null,null,null,null,null,null,null,null,null,null,null,null,null,null,null,null,null,null,null,null,null,null,null,null,null,"чем часы в ячейке  синего цвета, то жёлтая ячейка светилась красным цветом"]